Workbook

Sheet Glas
B1: 1 | G1: DEZE KOLOMMEN VERBERGEN | AB1: DEZE KOLOMMEN VERBERGEN
B5: Naam: | E5: Windgebied
B6: Offerte: | E6: Ligging
B7: Project: | E7: Gebouwhoogte
B8: Calculator:
B9: Datum: | P9: 1
R11: A | AE11: B | AO11: C
O13: Lengte > | P13: 3209 | Q13: 0.25 | R13: Prijs | S13: Tot. Prijs | T13: Milieu | V13: Glasdikte | Y13: KG | AB13: Lengte > | AC13: 3099 | AD13: 0.2 | AE13: Prijs | AF13: Tot. Prijs | AG13: Milieu | AI13: Glasdikte | AL13: KG | AO13: Prijs | AP13: Tot. Prijs | AQ13: Milieu | AS13: Glasdikte | AV13: KG
B14: Glascode | C14: Glasopbouw | O14: Opp.toeslag | R14: € / m2 | S14: € | T14: 0.55 | V14: mm | Y14: totaal | AB14: Opp.toeslag | AE14: € / m2 | AF14: € | AG14: 0.55 | AI14: mm | AL14: totaal | AO14: € / m2 | AP14: € | AQ14: 0.55 | AS14: mm | AV14: totaal
N15: > | O15: 5 | Q15: 0.1 | R15: =SUM(S17:S41) -> 3019.9376 | T15: =SUM(T17:T41) -> 57.32331 | V15: Buiten | W15: Midden | X15: Binnen | Y15: =SUM(Y17:Y41) -> 3921.43709 | Z15: =SUM(Z49:Z1001) -> 18 | AB15: > 5,0 en < 7,5m2 | AD15: 0.1 | AE15: =SUM(AF17:AF41) -> 3580.7682 | AG15: =SUM(AG17:AG41) -> 57.32331 | AI15: Buiten | AJ15: Midden | AK15: Binnen | AL15: =SUM(AL17:AL41) -> 3921.43709 | AM15: =SUM(AM49:AM1001) -> 18 | AO15: =SUM(AP17:AP41) -> 2720.9095 | AQ15: =SUM(AQ17:AQ41) -> 57.32331 | AS15: Buiten | AT15: Midden | AU15: Binnen | AV15: =SUM(AV17:AV41) -> 3921.43709 | AW15: =SUM(AW49:AW1001) -> 18
N16: > | O16: 7.5 | Q16: 0.2
A17: =IF(B17=0,0,1) -> 1 | B17: G1 | C17: =IF(A17=1,VLOOKUP(B17,B$49:C$1001,2)," ") -> 6 - 12 - 4 - 12 - 6 | E17: Glaskeuze: | L17: 3 | N17: > | O17: 10 | Q17: 0.5 | R17: 20 | S17: =SUMIFS(S$49:S$1001,B$49:B$1001,B17) -> 2154.3356 | T17: =SUMIFS(T$49:T$1001,B$49:B$1001,B17) -> 40.816765 | U17: =SUM(V17:X17) -> 16 | V17: 6 | W17: 4 | X17: 6 | Y17: =SUMIFS(Y$49:Y$1001,B$49:B$1001,B17) -> 2936.41216 | AB17: > 10,0 en < 13,5m2 | AD17: 0.5 | AE17: 30 | AF17: =SUMIFS(AF$49:AF$1001,B$49:B$1001,B17) -> 2715.1662 | AG17: =SUMIFS(AG$49:AG$2506,B$49:B$2506,B17) -> 40.816765 | AH17: =SUM(AI17:AK17) -> 16 | AI17: 6 | AJ17: 4 | AK17: 6 | AL17: =SUMIFS(AL$49:AL$1001,B$49:B$1001,B17) -> 2936.41216 | AO17: 25 | AP17: =SUMIFS(AP$49:AP$1001,B$49:B$1001,B17) -> 1855.3075 | AQ17: =SUMIFS(AQ$49:AQ$2506,B$49:B$2506,B17) -> 40.816765 | AR17: =SUM(AS17:AU17) -> 16 | AS17: 6 | AT17: 4 | AU17: 6 | AV17: =SUMIFS(AV$49:AV$1001,B$49:B$1001,B17) -> 2936.41216
A18: 1 | B18: G1-DL | C18: 3.3/1 - 12 - 4 - 12 - 3.3/1 | R18: 40 | S18: =SUMIFS(S$49:S$1001,B$49:B$1001,B18) -> 799.272 | T18: =SUMIFS(T$49:T$1001,B$49:B$1001,B18) -> 10.98999 | U18: =SUM(V18:X18) -> 20 | V18: 12 | W18: 4 | X18: 4 | Y18: =SUMIFS(Y$49:Y$1001,B$49:B$1001,B18) -> 958.5355 | AB18: > 13,5m2 | AE18: 40 | AF18: =SUMIFS(AF$49:AF$1001,B$49:B$1001,B18) -> 799.272 | AG18: =SUMIFS(AG$49:AG$2506,B$49:B$2506,B18) -> 10.98999 | AH18: =SUM(AI18:AK18) -> 20 | AI18: 12 | AJ18: 4 | AK18: 4 | AL18: =SUMIFS(AL$49:AL$1001,B$49:B$1001,B18) -> 958.5355 | AO18: 40 | AP18: =SUMIFS(AP$49:AP$1001,B$49:B$1001,B18) -> 799.272 | AQ18: =SUMIFS(AQ$49:AQ$2506,B$49:B$2506,B18) -> 10.98999 | AR18: =SUM(AS18:AU18) -> 20 | AS18: 12 | AT18: 4 | AU18: 4 | AV18: =SUMIFS(AV$49:AV$1001,B$49:B$1001,B18) -> 958.5355
A19: 1 | B19: G1-DV | C19: 6.6/2 - 12 - 4 - 12 - 3.3/1 | R19: 55 | S19: 66.33 | T19: =SUMIFS(T$49:T$1001,B$49:B$1001,B19) -> 0.6633 | U19: 9 | V19: 5 | X19: 4 | Y19: =SUMIFS(Y$49:Y$1001,B$49:B$1001,B19) -> 26.48943 | AE19: 55 | AF19: =SUMIFS(AF$49:AF$1001,B$49:B$1001,B19) -> 66.33 | AG19: =SUMIFS(AG$49:AG$2506,B$49:B$2506,B19) -> 0.6633 | AH19: 9 | AI19: 5 | AK19: 4 | AL19: 26.48943 | AO19: 55 | AP19: =SUMIFS(AP$49:AP$1001,B$49:B$1001,B19) -> 66.33 | AQ19: =SUMIFS(AQ$49:AQ$2506,B$49:B$2506,B19) -> 0.6633 | AR19: 9 | AS19: 5 | AU19: 4 | AV19: =SUMIFS(AV$49:AV$1001,B$49:B$1001,B19) -> 26.48943
A20: 1 | B20: G1-L | C20: 3.3/1 - 12 - 4 - 12 - 6 | R20: 0 | S20: 0 | T20: 2.131965 | U20: 0 | Y20: 0 | AE20: 0 | AF20: 0 | AG20: 2.131965 | AH20: 0 | AL20: 0 | AO20: 0 | AP20: 0 | AQ20: 2.131965 | AR20: 0 | AV20: 0
A21: 1 | B21: P1 alu-alu | C21: 0 | R21: 0 | S21: 0 | T21: 1.05908 | U21: 0 | Y21: 0 | AE21: 0 | AF21: 0 | AG21: 1.05908 | AH21: 0 | AL21: 0 | AO21: 0 | AP21: 0 | AQ21: 1.05908 | AR21: 0 | AV21: 0
A22: 1 | B22: P1g | C22: Glas in voordeur | R22: 0 | S22: 0 | T22: 1.66221 | U22: 0 | Y22: 0 | AE22: 0 | AF22: 0 | AG22: 1.66221 | AH22: 0 | AL22: 0 | AO22: 0 | AP22: 0 | AQ22: 1.66221 | AR22: 0 | AV22: 0
A23: =IF(B23=0,0,1) -> 0 | C23: =IF(A23=1,VLOOKUP(B23,B$49:C$1001,2)," ") ->  | R23: 0 | S23: 0 | T23: 0 | U23: 0 | Y23: 0 | AE23: 0 | AF23: 0 | AG23: 0 | AH23: 0 | AL23: 0 | AO23: 0 | AP23: 0 | AQ23: 0 | AR23: 0 | AV23: 0
A24: =IF(B24=0,0,1) -> 0 | C24: =IF(A24=1,VLOOKUP(B24,B$49:C$1001,2)," ") ->  | R24: 0 | S24: 0 | T24: 0 | U24: 0 | Y24: 0 | AE24: 0 | AF24: 0 | AG24: 0 | AH24: 0 | AL24: 0 | AO24: 0 | AP24: 0 | AQ24: 0 | AR24: 0 | AV24: 0
A25: 0 | R25: 0 | S25: 0 | T25: 0 | U25: 0 | Y25: 0 | AE25: 0 | AF25: 0 | AG25: 0 | AH25: 0 | AL25: 0 | AO25: 0 | AP25: 0 | AQ25: 0 | AR25: 0 | AV25: 0
A26: 0 | R26: 0 | S26: 0 | T26: 0 | U26: 0 | Y26: 0 | AE26: 0 | AF26: 0 | AG26: 0 | AH26: 0 | AL26: 0 | AO26: 0 | AP26: 0 | AQ26: 0 | AR26: 0 | AV26: 0
A27: 0 | R27: 0 | S27: 0 | T27: 0 | U27: 0 | Y27: 0 | AE27: 0 | AF27: 0 | AG27: 0 | AH27: 0 | AL27: 0 | AO27: 0 | AP27: 0 | AQ27: 0 | AR27: 0 | AV27: 0
A28: 0 | R28: 0 | S28: 0 | T28: 0 | U28: 0 | Y28: 0 | AE28: 0 | AF28: 0 | AG28: 0 | AH28: 0 | AL28: 0 | AO28: 0 | AP28: 0 | AQ28: 0 | AR28: 0 | AV28: 0
A29: 0 | R29: 0 | S29: 0 | T29: 0 | U29: 0 | Y29: 0 | AE29: 0 | AF29: 0 | AG29: 0 | AH29: 0 | AL29: 0 | AO29: 0 | AP29: 0 | AQ29: 0 | AR29: 0 | AV29: 0
A30: 0 | R30: 0 | S30: 0 | T30: 0 | U30: 0 | Y30: 0 | AE30: 0 | AF30: 0 | AG30: 0 | AH30: 0 | AL30: 0 | AO30: 0 | AP30: 0 | AQ30: 0 | AR30: 0 | AV30: 0
A31: 0 | R31: 0 | S31: 0 | T31: 0 | U31: 0 | Y31: 0 | AE31: 0 | AF31: 0 | AG31: 0 | AH31: 0 | AL31: 0 | AO31: 0 | AP31: 0 | AQ31: 0 | AR31: 0 | AV31: 0
A32: 0 | R32: 0 | S32: 0 | T32: 0 | U32: 0 | Y32: 0 | AE32: 0 | AF32: 0 | AG32: 0 | AH32: 0 | AL32: 0 | AO32: 0 | AP32: 0 | AQ32: 0 | AR32: 0 | AV32: 0
A33: 0 | R33: 0 | S33: 0 | T33: 0 | U33: 0 | Y33: 0 | AE33: 0 | AF33: 0 | AG33: 0 | AH33: 0 | AL33: 0 | AO33: 0 | AP33: 0 | AQ33: 0 | AR33: 0 | AV33: 0
A34: 0 | R34: 0 | S34: 0 | T34: 0 | U34: 0 | Y34: 0 | AE34: 0 | AF34: 0 | AG34: 0 | AH34: 0 | AL34: 0 | AO34: 0 | AP34: 0 | AQ34: 0 | AR34: 0 | AV34: 0
A35: 0 | R35: 0 | S35: 0 | T35: 0 | U35: 0 | Y35: 0 | AE35: 0 | AF35: 0 | AG35: 0 | AH35: 0 | AL35: 0 | AO35: 0 | AP35: 0 | AQ35: 0 | AR35: 0 | AV35: 0
A36: 0 | R36: 0 | S36: 0 | T36: 0 | U36: 0 | Y36: 0 | AE36: 0 | AF36: 0 | AG36: 0 | AH36: 0 | AL36: 0 | AO36: 0 | AP36: 0 | AQ36: 0 | AR36: 0 | AV36: 0
A37: 0 | R37: 0 | S37: 0 | T37: 0 | U37: 0 | Y37: 0 | AE37: 0 | AF37: 0 | AG37: 0 | AH37: 0 | AL37: 0 | AO37: 0 | AP37: 0 | AQ37: 0 | AR37: 0 | AV37: 0
A38: 0 | R38: 0 | S38: 0 | T38: 0 | U38: 0 | Y38: 0 | AE38: 0 | AF38: 0 | AG38: 0 | AH38: 0 | AL38: 0 | AO38: 0 | AP38: 0 | AQ38: 0 | AR38: 0 | AV38: 0
A39: 0 | R39: 0 | S39: 0 | T39: 0 | U39: 0 | Y39: 0 | AE39: 0 | AF39: 0 | AG39: 0 | AH39: 0 | AL39: 0 | AO39: 0 | AP39: 0 | AQ39: 0 | AR39: 0 | AV39: 0
A40: 0 | R40: 0 | S40: 0 | T40: 0 | U40: 0 | Y40: 0 | AE40: 0 | AF40: 0 | AG40: 0 | AH40: 0 | AL40: 0 | AO40: 0 | AP40: 0 | AQ40: 0 | AR40: 0 | AV40: 0
A41: 0 | R41: 0 | S41: =SUMIFS(S$49:S$1001,B$49:B$1001,B41) -> 0 | T41: 0 | U41: =SUM(V41:X41) -> 0 | Y41: =SUMIFS(Y$49:Y$1001,B$49:B$1001,B41) -> 0 | AE41: 0 | AF41: 0 | AG41: 0 | AH41: =SUM(AI41:AK41) -> 0 | AL41: 0 | AO41: 0 | AP41: 0 | AQ41: 0 | AR41: 0 | AV41: 0
B43: ONDERSTAANDE WAARDEN ALLEEN TER INFO
B46: Glasstaat uit Logikal
B47: Glascode | C47: Glasopbouw | D47: Aantal | E47: Breedte | F47: Hoogte | G47: Driemaat | H47: Glopp | I47: TOTGLopp | J47: Min. Opp | K47: TOTopp | L47: Werkelijk opp. | M47: Werkelijk opp. | O47: Prijs | P47: incl. toeslag lengte | Q47: incl. toeslag opp. | R47: prijs totaal | S47: Tot.prijs | T47: Milieu | V47: Glasdikte | W47: KG | Y47: KG | AB47: Prijs | AC47: incl. toeslag lengte | AD47: incl. toeslag opp. | AE47: prijs totaal | AF47: Tot.prijs | AG47: Milieu | AI47: Glasdikte | AJ47: KG | AL47: Gewicht | AO47: prijs totaal | AP47: Tot.prijs | AQ47: Milieu | AS47: Glasdikte | AT47: KG | AV47: Gewicht
E48: (mm) | F48: (mm) | L48: (p/s m2) | M48: (tot m2) | O48: € / m2 | R48: € / m2 | S48: € | T48: 0.55 | V48: mm | W48: p/s | Y48: totaal | AB48: € / m2 | AE48: € / m2 | AF48: € | AG48: 0.55 | AI48: mm | AJ48: p/s | AL48: totaal | AO48: € / m2 | AP48: € | AQ48: 0.55 | AS48: mm | AT48: p/s | AV48: totaal
B49: G1 | C49: 6 - 12 - 4 - 12 - 6 | D49: 2 | E49: 2500 | F49: 2250 | G49: =(IF(((E49/30)=INT(E49/30)),(E49/1000),((INT((E49/30)+1))*(30/1000))))*(IF(((F49/30)=INT(F49/30)),(F49/1000),((INT((F49/30)+1))*(30/1000)))) -> 5.67 | H49: =IF(G49<0.2,0.2,G49)*OR(IF(G49=0,0,G49)) -> 5.67 | I49: =H49*D49 -> 11.34 | J49: =IF(G49<0.5,0.5,G49)*OR(IF(G49=0,0,G49)) -> 5.67 | K49: =J49*D49 -> 11.34 | L49: =E49*F49/1000000 -> 5.625 | M49: =L49*D49 -> 11.25 | O49: =IF(D49>0,VLOOKUP(B49,B$17:R$41,17)) -> 20 | P49: =IF(OR(E49>P$13,F49>P$13),O49*Q$13,0) -> 0 | Q49: =IF(L49<5,0,VLOOKUP(L49,$O$15:$Q$17,3,1)) -> 0.1 | R49: =O49+P49+O49*Q49 -> 22 | S49: =K49*R49 -> 249.48 | T49: =K49*T$14 -> 6.237 | V49: =IF(D49>0,VLOOKUP(B49,B$17:U$41,20)) -> 16 | W49: =V49*2.5*L49 -> 225 | Y49: =W49*D49 -> 450 | Z49: =IF(W49>59.99,D49,0) -> 2 | AB49: =IF(D49>0,VLOOKUP(B49,B$17:AE$41,30)) -> 30 | AC49: =IF(OR(E49>AC$13,F49>AC$13),AB49*AD$13,0) -> 0 | AD49: =IF(L49>5,AB49*0.1,0) -> 3 | AE49: =SUM(AB49:AD49) -> 33 | AF49: =K49*(AB49+AC49+AD49) -> 374.22 | AG49: =K49*AG$14 -> 6.237 | AI49: =IF(D49>0,VLOOKUP(B49,B$17:AH$41,33)) -> 16 | AJ49: =AI49*2.5*L49 -> 225 | AL49: =AJ49*D49 -> 450 | AM49: =IF(AJ49>59.99,D49,0) -> 2 | AO49: =IF(D49>0,VLOOKUP(B49,B$17:AO$41,40)) -> 25 | AP49: =AO49*K49 -> 283.5 | AQ49: =K49*AQ$14 -> 6.237 | AS49: =IF(D49>0,VLOOKUP(B49,B$17:AR$41,43)) -> 16 | AT49: =AS49*2.5*L49 -> 225 | AV49: =AT49*D49 -> 450 | AW49: =IF(AT49>59.99,D49,0) -> 2
B50: G1 | C50: 6 - 12 - 4 - 12 - 6 | D50: 1 | E50: 2800 | F50: 2800 | G50: 7.9524 | H50: 7.9524 | I50: 7.9524 | J50: 7.9524 | K50: 7.9524 | L50: 7.84 | M50: 7.84 | O50: =IF(D50>0,VLOOKUP(B50,B$17:R$41,17)) -> 20 | P50: =IF(OR(E50>P$13,F50>P$13),O50*Q$13,0) -> 0 | Q50: =IF(L50<5,0,VLOOKUP(L50,$O$15:$Q$17,3,1)) -> 0.2 | R50: =O50+P50+O50*Q50 -> 24 | S50: 190.8576 | T50: =K50*T$14 -> 4.37382 | V50: =IF(D50>0,VLOOKUP(B50,B$17:U$41,20)) -> 16 | W50: =V50*2.5*L50 -> 313.6 | Y50: 313.6 | Z50: 1 | AB50: =IF(D50>0,VLOOKUP(B50,B$17:AE$41,30)) -> 30 | AC50: =IF(OR(E50>3099,F50>3099),AB50*0.25,0) -> 0 | AD50: 3 | AE50: =SUM(AB50:AD50) -> 33 | AF50: 262.4292 | AG50: =K50*AG$14 -> 4.37382 | AI50: =IF(D50>0,VLOOKUP(B50,B$17:AH$41,33)) -> 16 | AJ50: =AI50*2.5*L50 -> 313.6 | AL50: 313.6 | AM50: 1 | AO50: =IF(D50>0,VLOOKUP(B50,B$17:AO$41,40)) -> 25 | AP50: =AO50*K50 -> 198.81 | AQ50: =K50*AQ$14 -> 4.37382 | AS50: =IF(D50>0,VLOOKUP(B50,B$17:AR$41,43)) -> 16 | AT50: =AS50*2.5*L50 -> 313.6 | AV50: =AT50*D50 -> 313.6 | AW50: =IF(AT50>59.99,D50,0) -> 1
B51: G1 | C51: 6 - 12 - 4 - 12 - 6 | D51: 4 | E51: 2850 | F51: 3600 | G51: 10.26 | H51: 10.26 | I51: 41.04 | J51: 10.26 | K51: 41.04 | L51: 10.26 | M51: 41.04 | O51: =IF(D51>0,VLOOKUP(B51,B$17:R$41,17)) -> 20 | P51: 5 | Q51: 0.5 | R51: 35 | S51: 1436.4 | T51: =K51*T$14 -> 22.572 | V51: =IF(D51>0,VLOOKUP(B51,B$17:U$41,20)) -> 16 | W51: =V51*2.5*L51 -> 410.4 | Y51: 1641.6 | Z51: 4 | AB51: =IF(D51>0,VLOOKUP(B51,B$17:AE$41,30)) -> 30 | AC51: 7.5 | AD51: 3 | AE51: 40.5 | AF51: 1662.12 | AG51: =K51*AG$14 -> 22.572 | AI51: =IF(D51>0,VLOOKUP(B51,B$17:AH$41,33)) -> 16 | AJ51: =AI51*2.5*L51 -> 410.4 | AL51: 1641.6 | AM51: 4 | AO51: =IF(D51>0,VLOOKUP(B51,B$17:AO$41,40)) -> 25 | AP51: =AO51*K51 -> 1026 | AQ51: =K51*AQ$14 -> 22.572 | AS51: =IF(D51>0,VLOOKUP(B51,B$17:AR$41,43)) -> 16 | AT51: =AS51*2.5*L51 -> 410.4 | AV51: 1641.6 | AW51: 4
B52: G1 | C52: 6 - 12 - 4 - 12 - 6 | D52: 2 | E52: 780 | F52: 1482 | G52: 1.17 | H52: 1.17 | I52: 2.34 | J52: 1.17 | K52: 2.34 | L52: 1.15596 | M52: 2.31192 | O52: 20 | P52: 0 | Q52: 0 | R52: 20 | S52: 46.8 | T52: 1.287 | V52: 16 | W52: 46.2384 | Y52: 92.4768 | Z52: 0 | AB52: 30 | AC52: 0 | AD52: 0 | AE52: 30 | AF52: 70.2 | AG52: 1.287 | AI52: 16 | AJ52: 46.2384 | AL52: 92.4768 | AM52: 0 | AO52: 25 | AP52: 58.5 | AQ52: 1.287 | AS52: 16 | AT52: 46.2384 | AV52: 92.4768 | AW52: 0
B53: G1 | C53: 6 - 12 - 4 - 12 - 6 | D53: 2 | E53: 730 | F53: 1180 | G53: 0.9 | H53: 0.9 | I53: 1.8 | J53: 0.9 | K53: 1.8 | L53: 0.8614 | M53: 1.7228 | O53: 20 | P53: 0 | Q53: 0 | R53: 20 | S53: 36 | T53: 0.99 | V53: 16 | W53: 34.456 | Y53: 68.912 | Z53: 0 | AB53: 30 | AC53: 0 | AD53: 0 | AE53: 30 | AF53: 54 | AG53: 0.99 | AI53: 16 | AJ53: 34.456 | AL53: 68.912 | AM53: 0 | AO53: 25 | AP53: 45 | AQ53: 0.99 | AS53: 16 | AT53: 34.456 | AV53: 68.912 | AW53: 0
B54: G1 | C54: 6 - 12 - 4 - 12 - 6 | D54: 1 | E54: 1682 | F54: 732 | G54: 1.2825 | H54: 1.2825 | I54: 1.2825 | J54: 1.2825 | K54: 1.2825 | L54: 1.231224 | M54: 1.231224 | O54: 20 | P54: 0 | Q54: 0 | R54: 20 | S54: 25.65 | T54: 0.705375 | V54: 16 | W54: 49.24896 | Y54: 49.24896 | Z54: 0 | AB54: 30 | AC54: 0 | AD54: 0 | AE54: 30 | AF54: 38.475 | AG54: 0.705375 | AI54: 16 | AJ54: 49.24896 | AL54: 49.24896 | AM54: 0 | AO54: 25 | AP54: 32.0625 | AQ54: 0.705375 | AS54: 16 | AT54: 49.24896 | AV54: 49.24896 | AW54: 0
B55: G1 | C55: 6 - 12 - 4 - 12 - 6 | D55: 1 | E55: 614 | F55: 696 | G55: 0.4536 | H55: 0.4536 | I55: 0.4536 | J55: 0.5 | K55: 0.5 | L55: 0.427344 | M55: 0.427344 | O55: 20 | P55: 0 | Q55: 0 | R55: 20 | S55: 10 | T55: 0.275 | V55: 16 | W55: 17.09376 | Y55: 17.09376 | Z55: 0 | AB55: 30 | AC55: 0 | AD55: 0 | AE55: 30 | AF55: 15 | AG55: 0.275 | AI55: 16 | AJ55: 17.09376 | AL55: 17.09376 | AM55: 0 | AO55: 25 | AP55: 12.5 | AQ55: 0.275 | AS55: 16 | AT55: 17.09376 | AV55: 17.09376 | AW55: 0
B56: G1 | C56: 6 - 12 - 4 - 12 - 6 | D56: 1 | E56: 700 | F56: 782 | G56: 0.5832 | H56: 0.5832 | I56: 0.5832 | J56: 0.5832 | K56: 0.5832 | L56: 0.5474 | M56: 0.5474 | O56: 20 | P56: 0 | Q56: 0 | R56: 20 | S56: 11.664 | T56: 0.32076 | V56: 16 | W56: 21.896 | Y56: 21.896 | Z56: 0 | AB56: 30 | AC56: 0 | AD56: 0 | AE56: 30 | AF56: 17.496 | AG56: 0.32076 | AI56: 16 | AJ56: 21.896 | AL56: 21.896 | AM56: 0 | AO56: 25 | AP56: 14.58 | AQ56: 0.32076 | AS56: 16 | AT56: 21.896 | AV56: 21.896 | AW56: 0
B57: G1 | C57: 6 - 12 - 4 - 12 - 6 | D57: 1 | E57: 396 | F57: 696 | G57: 0.3024 | H57: 0.3024 | I57: 0.3024 | J57: 0.5 | K57: 0.5 | L57: 0.275616 | M57: 0.275616 | O57: 20 | P57: 0 | Q57: 0 | R57: 20 | S57: 10 | T57: 0.275 | V57: 16 | W57: 11.02464 | Y57: 11.02464 | Z57: 0 | AB57: 30 | AC57: 0 | AD57: 0 | AE57: 30 | AF57: 15 | AG57: 0.275 | AI57: 16 | AJ57: 11.02464 | AL57: 11.02464 | AM57: 0 | AO57: 25 | AP57: 12.5 | AQ57: 0.275 | AS57: 16 | AT57: 11.02464 | AV57: 11.02464 | AW57: 0
B58: G1 | C58: 6 - 12 - 4 - 12 - 6 | D58: 1 | E58: 1000 | F58: 2000 | G58: 2.0502 | H58: 2.0502 | I58: 2.0502 | J58: 2.0502 | K58: 2.0502 | L58: 2 | M58: 2 | O58: 20 | P58: 0 | Q58: 0 | R58: 20 | S58: 41.004 | T58: 1.12761 | V58: 16 | W58: 80 | Y58: 80 | Z58: 1 | AB58: 30 | AC58: 0 | AD58: 0 | AE58: 30 | AF58: 61.506 | AG58: 1.12761 | AI58: 16 | AJ58: 80 | AL58: 80 | AM58: 1 | AO58: 25 | AP58: 51.255 | AQ58: 1.12761 | AS58: 16 | AT58: 80 | AV58: 80 | AW58: 1
B59: G1 | C59: 6 - 12 - 4 - 12 - 6 | D59: 1 | E59: 2382 | F59: 2000 | G59: 4.824 | H59: 4.824 | I59: 4.824 | J59: 4.824 | K59: 4.824 | L59: 4.764 | M59: 4.764 | O59: 20 | P59: 0 | Q59: 0 | R59: 20 | S59: 96.48 | T59: 2.6532 | V59: 16 | W59: 190.56 | Y59: 190.56 | Z59: 1 | AB59: 30 | AC59: 0 | AD59: 0 | AE59: 30 | AF59: 144.72 | AG59: 2.6532 | AI59: 16 | AJ59: 190.56 | AL59: 190.56 | AM59: 1 | AO59: 25 | AP59: 120.6 | AQ59: 2.6532 | AS59: 16 | AT59: 190.56 | AV59: 190.56 | AW59: 1
B60: G1-DL | C60: 3.3/1 - 12 - 4 - 12 - 3.3/1 | D60: 4 | E60: 214 | F60: 2282 | G60: 0.5544 | H60: 0.5544 | I60: 2.2176 | J60: 0.5544 | K60: 2.2176 | L60: 0.488348 | M60: 1.953392 | O60: 40 | P60: 0 | Q60: 0 | R60: 40 | S60: 88.704 | T60: 1.21968 | V60: 20 | W60: 24.4174 | Y60: 97.6696 | Z60: 0 | AB60: 40 | AC60: 0 | AD60: 0 | AE60: 40 | AF60: 88.704 | AG60: 1.21968 | AI60: 20 | AJ60: 24.4174 | AL60: 97.6696 | AM60: 0 | AO60: 40 | AP60: 88.704 | AQ60: 1.21968 | AS60: 20 | AT60: 24.4174 | AV60: 97.6696 | AW60: 0
B61: G1-DL | C61: 3.3/1 - 12 - 4 - 12 - 3.3/1 | D61: 2 | E61: 609 | F61: 2140 | G61: 1.3608 | H61: 1.3608 | I61: 2.7216 | J61: 1.3608 | K61: 2.7216 | L61: 1.30326 | M61: 2.60652 | O61: 40 | P61: 0 | Q61: 0 | R61: 40 | S61: 108.864 | T61: 1.49688 | V61: 20 | W61: 65.163 | Y61: 130.326 | Z61: 2 | AB61: 40 | AC61: 0 | AD61: 0 | AE61: 40 | AF61: 108.864 | AG61: 1.49688 | AI61: 20 | AJ61: 65.163 | AL61: 130.326 | AM61: 2 | AO61: 40 | AP61: 108.864 | AQ61: 1.49688 | AS61: 20 | AT61: 65.163 | AV61: 130.326 | AW61: 2
B62: G1-DL | C62: 3.3/1 - 12 - 4 - 12 - 3.3/1 | D62: 1 | E62: 780 | F62: 2282 | G62: 1.8018 | H62: 1.8018 | I62: 1.8018 | J62: 1.8018 | K62: 1.8018 | L62: 1.77996 | M62: 1.77996 | O62: 40 | P62: 0 | Q62: 0 | R62: 40 | S62: 72.072 | T62: 0.99099 | V62: 20 | W62: 88.998 | Y62: 88.998 | Z62: 1 | AB62: 40 | AC62: 0 | AD62: 0 | AE62: 40 | AF62: 72.072 | AG62: 0.99099 | AI62: 20 | AJ62: 88.998 | AL62: 88.998 | AM62: 1 | AO62: 40 | AP62: 72.072 | AQ62: 0.99099 | AS62: 20 | AT62: 88.998 | AV62: 88.998 | AW62: 1
B63: G1-DL | C63: 3.3/1 - 12 - 4 - 12 - 3.3/1 | D63: 2 | E63: 1033 | F63: 2156 | G63: 2.268 | H63: 2.268 | I63: 4.536 | J63: 2.268 | K63: 4.536 | L63: 2.227148 | M63: 4.454296 | O63: 40 | P63: 0 | Q63: 0 | R63: 40 | S63: 181.44 | T63: 2.4948 | V63: 20 | W63: 111.3574 | Y63: 222.7148 | Z63: 2 | AB63: 40 | AC63: 0 | AD63: 0 | AE63: 40 | AF63: 181.44 | AG63: 2.4948 | AI63: 20 | AJ63: 111.3574 | AL63: 222.7148 | AM63: 2 | AO63: 40 | AP63: 181.44 | AQ63: 2.4948 | AS63: 20 | AT63: 111.3574 | AV63: 222.7148 | AW63: 2
B64: G1-DL | C64: 3.3/1 - 12 - 4 - 12 - 3.3/1 | D64: 1 | E64: 649 | F64: 1374 | G64: 0.9108 | H64: 0.9108 | I64: 0.9108 | J64: 0.9108 | K64: 0.9108 | L64: 0.891726 | M64: 0.891726 | O64: 40 | P64: 0 | Q64: 0 | R64: 40 | S64: 36.432 | T64: 0.50094 | V64: 20 | W64: 44.5863 | Y64: 44.5863 | Z64: 0 | AB64: 40 | AC64: 0 | AD64: 0 | AE64: 40 | AF64: 36.432 | AG64: 0.50094 | AI64: 20 | AJ64: 44.5863 | AL64: 44.5863 | AM64: 0 | AO64: 40 | AP64: 36.432 | AQ64: 0.50094 | AS64: 20 | AT64: 44.5863 | AV64: 44.5863 | AW64: 0
B65: G1-DL | C65: 3.3/1 - 12 - 4 - 12 - 3.3/1 | D65: 4 | E65: 722 | F65: 2182 | G65: 1.6425 | H65: 1.6425 | I65: 6.57 | J65: 1.6425 | K65: 6.57 | L65: 1.575404 | M65: 6.301616 | O65: 40 | P65: 0 | Q65: 0 | R65: 40 | S65: 262.8 | T65: 3.6135 | V65: 20 | W65: 78.7702 | Y65: 315.0808 | Z65: 4 | AB65: 40 | AC65: 0 | AD65: 0 | AE65: 40 | AF65: 262.8 | AG65: 3.6135 | AI65: 20 | AJ65: 78.7702 | AL65: 315.0808 | AM65: 4 | AO65: 40 | AP65: 262.8 | AQ65: 3.6135 | AS65: 20 | AT65: 78.7702 | AV65: 315.0808 | AW65: 4
B66: G1-DL | C66: 3.3/1 - 12 - 4 - 12 - 3.3/1 | D66: 1 | E66: 580 | F66: 2040 | G66: 1.224 | H66: 1.224 | I66: 1.224 | J66: 1.224 | K66: 1.224 | L66: 1.1832 | M66: 1.1832 | O66: 40 | P66: 0 | Q66: 0 | R66: 40 | S66: 48.96 | T66: 0.6732 | V66: 20 | W66: 59.16 | Y66: 59.16 | Z66: 0 | AB66: 40 | AC66: 0 | AD66: 0 | AE66: 40 | AF66: 48.96 | AG66: 0.6732 | AI66: 20 | AJ66: 59.16 | AL66: 59.16 | AM66: 0 | AO66: 40 | AP66: 48.96 | AQ66: 0.6732 | AS66: 20 | AT66: 59.16 | AV66: 59.16 | AW66: 0
B67: G1-DV | C67: 6.6/2 - 12 - 4 - 12 - 3.3/1 | D67: 1 | E67: 594 | F67: 1982 | G67: 1.206 | H67: 1.206 | I67: 1.206 | J67: 1.206 | K67: 1.206 | L67: 1.177308 | M67: 1.177308 | O67: 55 | P67: 0 | Q67: 0 | R67: 55 | S67: 66.33 | T67: 0.6633 | V67: 9 | W67: 26.48943 | Y67: 26.48943 | Z67: 0 | AB67: 55 | AC67: 0 | AD67: 0 | AE67: 55 | AF67: 66.33 | AG67: 0.6633 | AI67: 9 | AJ67: 26.48943 | AL67: 26.48943 | AM67: 0 | AO67: 55 | AP67: 66.33 | AQ67: 0.6633 | AS67: 9 | AT67: 26.48943 | AV67: 26.48943 | AW67: 0
B68: G1-L | C68: 3.3/1 - 12 - 4 - 12 - 6 | D68: 1 | E68: 722 | F68: 2182 | G68: 1.6425 | H68: 1.6425 | I68: 1.6425 | J68: 1.6425 | K68: 1.6425 | L68: 1.575404 | M68: 1.575404 | O68: 0 | P68: 0 | Q68: 0 | R68: 0 | S68: 0 | T68: 0.903375 | V68: 0 | W68: 0 | Y68: 0 | Z68: 0 | AB68: 0 | AC68: 0 | AD68: 0 | AE68: 0 | AF68: 0 | AG68: 0.903375 | AI68: 0 | AJ68: 0 | AL68: 0 | AM68: 0 | AO68: 0 | AP68: 0 | AQ68: 0.903375 | AS68: 0 | AT68: 0 | AV68: 0 | AW68: 0
B69: G1-L | C69: 3.3/1 - 12 - 4 - 12 - 6 | D69: 1 | E69: 580 | F69: 2040 | G69: 1.224 | H69: 1.224 | I69: 1.224 | J69: 1.224 | K69: 1.224 | L69: 1.1832 | M69: 1.1832 | O69: 0 | P69: 0 | Q69: 0 | R69: 0 | S69: 0 | T69: 0.6732 | V69: 0 | W69: 0 | Y69: 0 | Z69: 0 | AB69: 0 | AC69: 0 | AD69: 0 | AE69: 0 | AF69: 0 | AG69: 0.6732 | AI69: 0 | AJ69: 0 | AL69: 0 | AM69: 0 | AO69: 0 | AP69: 0 | AQ69: 0.6732 | AS69: 0 | AT69: 0 | AV69: 0 | AW69: 0
B70: G1-L | C70: 3.3/1 - 12 - 4 - 12 - 6 | D70: 1 | E70: 492 | F70: 1980 | G70: 1.0098 | H70: 1.0098 | I70: 1.0098 | J70: 1.0098 | K70: 1.0098 | L70: 0.97416 | M70: 0.97416 | O70: 0 | P70: 0 | Q70: 0 | R70: 0 | S70: 0 | T70: 0.55539 | V70: 0 | W70: 0 | Y70: 0 | Z70: 0 | AB70: 0 | AC70: 0 | AD70: 0 | AE70: 0 | AF70: 0 | AG70: 0.55539 | AI70: 0 | AJ70: 0 | AL70: 0 | AM70: 0 | AO70: 0 | AP70: 0 | AQ70: 0.55539 | AS70: 0 | AT70: 0 | AV70: 0 | AW70: 0
B71: P1 alu-alu | D71: 1 | E71: 649 | F71: 740 | G71: 0.495 | H71: 0.495 | I71: 0.495 | J71: 0.5 | K71: 0.5 | L71: 0.48026 | M71: 0.48026 | O71: 0 | P71: 0 | Q71: 0 | R71: 0 | S71: 0 | T71: 0.275 | V71: 0 | W71: 0 | Y71: 0 | Z71: 0 | AB71: 0 | AC71: 0 | AD71: 0 | AE71: 0 | AF71: 0 | AG71: 0.275 | AI71: 0 | AJ71: 0 | AL71: 0 | AM71: 0 | AO71: 0 | AP71: 0 | AQ71: 0.275 | AS71: 0 | AT71: 0 | AV71: 0 | AW71: 0
B72: P1 alu-alu | D72: 1 | E72: 639 | F72: 2143 | G72: 1.4256 | H72: 1.4256 | I72: 1.4256 | J72: 1.4256 | K72: 1.4256 | L72: 1.369377 | M72: 1.369377 | O72: 0 | P72: 0 | Q72: 0 | R72: 0 | S72: 0 | T72: 0.78408 | V72: 0 | W72: 0 | Y72: 0 | Z72: 0 | AB72: 0 | AC72: 0 | AD72: 0 | AE72: 0 | AF72: 0 | AG72: 0.78408 | AI72: 0 | AJ72: 0 | AL72: 0 | AM72: 0 | AO72: 0 | AP72: 0 | AQ72: 0.78408 | AS72: 0 | AT72: 0 | AV72: 0 | AW72: 0
B73: P1g | C73: Glas in voordeur | D73: 1 | E73: 737 | F73: 2174 | G73: 1.6425 | H73: 1.6425 | I73: 1.6425 | J73: 1.6425 | K73: 1.6425 | L73: 1.602238 | M73: 1.602238 | O73: 0 | P73: 0 | Q73: 0 | R73: 0 | S73: 0 | T73: 0.903375 | V73: 0 | W73: 0 | Y73: 0 | Z73: 0 | AB73: 0 | AC73: 0 | AD73: 0 | AE73: 0 | AF73: 0 | AG73: 0.903375 | AI73: 0 | AJ73: 0 | AL73: 0 | AM73: 0 | AO73: 0 | AP73: 0 | AQ73: 0.903375 | AS73: 0 | AT73: 0 | AV73: 0 | AW73: 0
B74: P1g | C74: Glas in voordeur | D74: 1 | E74: 627 | F74: 2174 | G74: 1.3797 | H74: 1.3797 | I74: 1.3797 | J74: 1.3797 | K74: 1.3797 | L74: 1.363098 | M74: 1.363098 | O74: 0 | P74: 0 | Q74: 0 | R74: 0 | S74: 0 | T74: 0.758835 | V74: 0 | W74: 0 | Y74: 0 | Z74: 0 | AB74: 0 | AC74: 0 | AD74: 0 | AE74: 0 | AF74: 0 | AG74: 0.758835 | AI74: 0 | AJ74: 0 | AL74: 0 | AM74: 0 | AO74: 0 | AP74: 0 | AQ74: 0.758835 | AS74: 0 | AT74: 0 | AV74: 0 | AW74: 0
D75: 0 | E75: 0 | F75: 0 | G75: 0 | H75: 0 | I75: 0 | J75: 0 | K75: 0 | L75: 0 | M75: 0 | O75: FALSE | P75: 0 | Q75: 0 | R75: 0 | S75: 0 | T75: 0 | V75: FALSE | W75: 0 | Y75: 0 | Z75: 0 | AB75: FALSE | AC75: 0 | AD75: 0 | AE75: 0 | AF75: 0 | AG75: 0 | AI75: FALSE | AJ75: 0 | AL75: 0 | AM75: 0 | AO75: FALSE | AP75: 0 | AQ75: 0 | AS75: FALSE | AT75: 0 | AV75: 0 | AW75: 0
G76: 0 | H76: 0 | I76: 0 | J76: 0 | K76: 0 | L76: 0 | M76: 0 | O76: FALSE | P76: 0 | Q76: 0 | R76: 0 | S76: 0 | T76: 0 | V76: FALSE | W76: 0 | Y76: 0 | Z76: 0 | AB76: FALSE | AC76: 0 | AD76: 0 | AE76: 0 | AF76: 0 | AG76: 0 | AI76: FALSE | AJ76: 0 | AL76: 0 | AM76: 0 | AO76: FALSE | AP76: 0 | AQ76: 0 | AS76: FALSE | AT76: 0 | AV76: 0 | AW76: 0
G77: 0 | H77: 0 | I77: 0 | J77: 0 | K77: 0 | L77: 0 | M77: 0 | O77: FALSE | P77: 0 | Q77: 0 | R77: 0 | S77: 0 | T77: 0 | V77: FALSE | W77: 0 | Y77: 0 | Z77: 0 | AB77: FALSE | AC77: 0 | AD77: 0 | AE77: 0 | AF77: 0 | AG77: 0 | AI77: FALSE | AJ77: 0 | AL77: 0 | AM77: 0 | AO77: FALSE | AP77: 0 | AQ77: 0 | AS77: FALSE | AT77: 0 | AV77: 0 | AW77: 0
G78: 0 | H78: 0 | I78: 0 | J78: 0 | K78: 0 | L78: 0 | M78: 0 | O78: FALSE | P78: 0 | Q78: 0 | R78: 0 | S78: 0 | T78: 0 | V78: FALSE | W78: 0 | Y78: 0 | Z78: 0 | AB78: FALSE | AC78: 0 | AD78: 0 | AE78: 0 | AF78: 0 | AG78: 0 | AI78: FALSE | AJ78: 0 | AL78: 0 | AM78: 0 | AO78: FALSE | AP78: 0 | AQ78: 0 | AS78: FALSE | AT78: 0 | AV78: 0 | AW78: 0
G79: 0 | H79: 0 | I79: 0 | J79: 0 | K79: 0 | L79: 0 | M79: 0 | O79: FALSE | P79: 0 | Q79: 0 | R79: 0 | S79: 0 | T79: 0 | V79: FALSE | W79: 0 | Y79: 0 | Z79: 0 | AB79: FALSE | AC79: 0 | AD79: 0 | AE79: 0 | AF79: 0 | AG79: 0 | AI79: FALSE | AJ79: 0 | AL79: 0 | AM79: 0 | AO79: FALSE | AP79: 0 | AQ79: 0 | AS79: FALSE | AT79: 0 | AV79: 0 | AW79: 0
G80: 0 | H80: 0 | I80: 0 | J80: 0 | K80: 0 | L80: 0 | M80: 0 | O80: FALSE | P80: 0 | Q80: 0 | R80: 0 | S80: 0 | T80: 0 | V80: FALSE | W80: 0 | Y80: 0 | Z80: 0 | AB80: FALSE | AC80: 0 | AD80: 0 | AE80: 0 | AF80: 0 | AG80: 0 | AI80: FALSE | AJ80: 0 | AL80: 0 | AM80: 0 | AO80: FALSE | AP80: 0 | AQ80: 0 | AS80: FALSE | AT80: 0 | AV80: 0 | AW80: 0
G81: 0 | H81: 0 | I81: 0 | J81: 0 | K81: 0 | L81: 0 | M81: 0 | O81: FALSE | P81: 0 | Q81: 0 | R81: 0 | S81: 0 | T81: 0 | V81: FALSE | W81: 0 | Y81: 0 | Z81: 0 | AB81: FALSE | AC81: 0 | AD81: 0 | AE81: 0 | AF81: 0 | AG81: 0 | AI81: FALSE | AJ81: 0 | AL81: 0 | AM81: 0 | AO81: FALSE | AP81: 0 | AQ81: 0 | AS81: FALSE | AT81: 0 | AV81: 0 | AW81: 0
G82: 0 | H82: 0 | I82: 0 | J82: 0 | K82: 0 | L82: 0 | M82: 0 | O82: FALSE | P82: 0 | Q82: 0 | R82: 0 | S82: 0 | T82: 0 | V82: FALSE | W82: 0 | Y82: 0 | Z82: 0 | AB82: FALSE | AC82: 0 | AD82: 0 | AE82: 0 | AF82: 0 | AG82: 0 | AI82: FALSE | AJ82: 0 | AL82: 0 | AM82: 0 | AO82: FALSE | AP82: 0 | AQ82: 0 | AS82: FALSE | AT82: 0 | AV82: 0 | AW82: 0
G83: 0 | H83: 0 | I83: 0 | J83: 0 | K83: 0 | L83: 0 | M83: 0 | O83: FALSE | P83: 0 | Q83: 0 | R83: 0 | S83: 0 | T83: 0 | V83: FALSE | W83: 0 | Y83: 0 | Z83: 0 | AB83: FALSE | AC83: 0 | AD83: 0 | AE83: 0 | AF83: 0 | AG83: 0 | AI83: FALSE | AJ83: 0 | AL83: 0 | AM83: 0 | AO83: FALSE | AP83: 0 | AQ83: 0 | AS83: FALSE | AT83: 0 | AV83: 0 | AW83: 0
G84: 0 | H84: 0 | I84: 0 | J84: 0 | K84: 0 | L84: 0 | M84: 0 | O84: FALSE | P84: 0 | Q84: 0 | R84: 0 | S84: 0 | T84: 0 | V84: FALSE | W84: 0 | Y84: 0 | Z84: 0 | AB84: FALSE | AC84: 0 | AD84: 0 | AE84: 0 | AF84: 0 | AG84: 0 | AI84: FALSE | AJ84: 0 | AL84: 0 | AM84: 0 | AO84: FALSE | AP84: 0 | AQ84: 0 | AS84: FALSE | AT84: 0 | AV84: 0 | AW84: 0
G85: 0 | H85: 0 | I85: 0 | J85: 0 | K85: 0 | L85: 0 | M85: 0 | O85: FALSE | P85: 0 | Q85: 0 | R85: 0 | S85: 0 | T85: 0 | V85: FALSE | W85: 0 | Y85: 0 | Z85: 0 | AB85: FALSE | AC85: 0 | AD85: 0 | AE85: 0 | AF85: 0 | AG85: 0 | AI85: FALSE | AJ85: 0 | AL85: 0 | AM85: 0 | AO85: FALSE | AP85: 0 | AQ85: 0 | AS85: FALSE | AT85: 0 | AV85: 0 | AW85: 0
G86: 0 | H86: 0 | I86: 0 | J86: 0 | K86: 0 | L86: 0 | M86: 0 | O86: FALSE | P86: 0 | Q86: 0 | R86: 0 | S86: 0 | T86: 0 | V86: FALSE | W86: 0 | Y86: 0 | Z86: 0 | AB86: FALSE | AC86: 0 | AD86: 0 | AE86: 0 | AF86: 0 | AG86: 0 | AI86: FALSE | AJ86: 0 | AL86: 0 | AM86: 0 | AO86: FALSE | AP86: 0 | AQ86: 0 | AS86: FALSE | AT86: 0 | AV86: 0 | AW86: 0
G87: 0 | H87: 0 | I87: 0 | J87: 0 | K87: 0 | L87: 0 | M87: 0 | O87: FALSE | P87: 0 | Q87: 0 | R87: 0 | S87: 0 | T87: 0 | V87: FALSE | W87: 0 | Y87: 0 | Z87: 0 | AB87: FALSE | AC87: 0 | AD87: 0 | AE87: 0 | AF87: 0 | AG87: 0 | AI87: FALSE | AJ87: 0 | AL87: 0 | AM87: 0 | AO87: FALSE | AP87: 0 | AQ87: 0 | AS87: FALSE | AT87: 0 | AV87: 0 | AW87: 0
G88: 0 | H88: 0 | I88: 0 | J88: 0 | K88: 0 | L88: 0 | M88: 0 | O88: FALSE | P88: 0 | Q88: 0 | R88: 0 | S88: 0 | T88: 0 | V88: FALSE | W88: 0 | Y88: 0 | Z88: 0 | AB88: FALSE | AC88: 0 | AD88: 0 | AE88: 0 | AF88: 0 | AG88: 0 | AI88: FALSE | AJ88: 0 | AL88: 0 | AM88: 0 | AO88: FALSE | AP88: 0 | AQ88: 0 | AS88: FALSE | AT88: 0 | AV88: 0 | AW88: 0
G89: 0 | H89: 0 | I89: 0 | J89: 0 | K89: 0 | L89: 0 | M89: 0 | O89: FALSE | P89: 0 | Q89: 0 | R89: 0 | S89: 0 | T89: 0 | V89: FALSE | W89: 0 | Y89: 0 | Z89: 0 | AB89: FALSE | AC89: 0 | AD89: 0 | AE89: 0 | AF89: 0 | AG89: 0 | AI89: FALSE | AJ89: 0 | AL89: 0 | AM89: 0 | AO89: FALSE | AP89: 0 | AQ89: 0 | AS89: FALSE | AT89: 0 | AV89: 0 | AW89: 0
G90: 0 | H90: 0 | I90: 0 | J90: 0 | K90: 0 | L90: 0 | M90: 0 | O90: FALSE | P90: 0 | Q90: 0 | R90: 0 | S90: 0 | T90: 0 | V90: FALSE | W90: 0 | Y90: 0 | Z90: 0 | AB90: FALSE | AC90: 0 | AD90: 0 | AE90: 0 | AF90: 0 | AG90: 0 | AI90: FALSE | AJ90: 0 | AL90: 0 | AM90: 0 | AO90: FALSE | AP90: 0 | AQ90: 0 | AS90: FALSE | AT90: 0 | AV90: 0 | AW90: 0
G91: 0 | H91: 0 | I91: 0 | J91: 0 | K91: 0 | L91: 0 | M91: 0 | O91: FALSE | P91: 0 | Q91: 0 | R91: 0 | S91: 0 | T91: 0 | V91: FALSE | W91: 0 | Y91: 0 | Z91: 0 | AB91: FALSE | AC91: 0 | AD91: 0 | AE91: 0 | AF91: 0 | AG91: 0 | AI91: FALSE | AJ91: 0 | AL91: 0 | AM91: 0 | AO91: FALSE | AP91: 0 | AQ91: 0 | AS91: FALSE | AT91: 0 | AV91: 0 | AW91: 0
G92: 0 | H92: 0 | I92: 0 | J92: 0 | K92: 0 | L92: 0 | M92: 0 | O92: FALSE | P92: 0 | Q92: 0 | R92: 0 | S92: 0 | T92: 0 | V92: FALSE | W92: 0 | Y92: 0 | Z92: 0 | AB92: FALSE | AC92: 0 | AD92: 0 | AE92: 0 | AF92: 0 | AG92: 0 | AI92: FALSE | AJ92: 0 | AL92: 0 | AM92: 0 | AO92: FALSE | AP92: 0 | AQ92: 0 | AS92: FALSE | AT92: 0 | AV92: 0 | AW92: 0
G93: 0 | H93: 0 | I93: 0 | J93: 0 | K93: 0 | L93: 0 | M93: 0 | O93: FALSE | P93: 0 | Q93: 0 | R93: 0 | S93: 0 | T93: 0 | V93: FALSE | W93: 0 | Y93: 0 | Z93: 0 | AB93: FALSE | AC93: 0 | AD93: 0 | AE93: 0 | AF93: 0 | AG93: 0 | AI93: FALSE | AJ93: 0 | AL93: 0 | AM93: 0 | AO93: FALSE | AP93: 0 | AQ93: 0 | AS93: FALSE | AT93: 0 | AV93: 0 | AW93: 0
G94: 0 | H94: 0 | I94: 0 | J94: 0 | K94: 0 | L94: 0 | M94: 0 | O94: FALSE | P94: 0 | Q94: 0 | R94: 0 | S94: 0 | T94: 0 | V94: FALSE | W94: 0 | Y94: 0 | Z94: 0 | AB94: FALSE | AC94: 0 | AD94: 0 | AE94: 0 | AF94: 0 | AG94: 0 | AI94: FALSE | AJ94: 0 | AL94: 0 | AM94: 0 | AO94: FALSE | AP94: 0 | AQ94: 0 | AS94: FALSE | AT94: 0 | AV94: 0 | AW94: 0
G95: 0 | H95: 0 | I95: 0 | J95: 0 | K95: 0 | L95: 0 | M95: 0 | O95: FALSE | P95: 0 | Q95: 0 | R95: 0 | S95: 0 | T95: 0 | V95: FALSE | W95: 0 | Y95: 0 | Z95: 0 | AB95: FALSE | AC95: 0 | AD95: 0 | AE95: 0 | AF95: 0 | AG95: 0 | AI95: FALSE | AJ95: 0 | AL95: 0 | AM95: 0 | AO95: FALSE | AP95: 0 | AQ95: 0 | AS95: FALSE | AT95: 0 | AV95: 0 | AW95: 0
G96: 0 | H96: 0 | I96: 0 | J96: 0 | K96: 0 | L96: 0 | M96: 0 | O96: FALSE | P96: 0 | Q96: 0 | R96: 0 | S96: 0 | T96: 0 | V96: FALSE | W96: 0 | Y96: 0 | Z96: 0 | AB96: FALSE | AC96: 0 | AD96: 0 | AE96: 0 | AF96: 0 | AG96: 0 | AI96: FALSE | AJ96: 0 | AL96: 0 | AM96: 0 | AO96: FALSE | AP96: 0 | AQ96: 0 | AS96: FALSE | AT96: 0 | AV96: 0 | AW96: 0
G97: 0 | H97: 0 | I97: 0 | J97: 0 | K97: 0 | L97: 0 | M97: 0 | O97: FALSE | P97: 0 | Q97: 0 | R97: 0 | S97: 0 | T97: 0 | V97: FALSE | W97: 0 | Y97: 0 | Z97: 0 | AB97: FALSE | AC97: 0 | AD97: 0 | AE97: 0 | AF97: 0 | AG97: 0 | AI97: FALSE | AJ97: 0 | AL97: 0 | AM97: 0 | AO97: FALSE | AP97: 0 | AQ97: 0 | AS97: FALSE | AT97: 0 | AV97: 0 | AW97: 0
G98: 0 | H98: 0 | I98: 0 | J98: 0 | K98: 0 | L98: 0 | M98: 0 | O98: FALSE | P98: 0 | Q98: 0 | R98: 0 | S98: 0 | T98: 0 | V98: FALSE | W98: 0 | Y98: 0 | Z98: 0 | AB98: FALSE | AC98: 0 | AD98: 0 | AE98: 0 | AF98: 0 | AG98: 0 | AI98: FALSE | AJ98: 0 | AL98: 0 | AM98: 0 | AO98: FALSE | AP98: 0 | AQ98: 0 | AS98: FALSE | AT98: 0 | AV98: 0 | AW98: 0
G99: 0 | H99: 0 | I99: 0 | J99: 0 | K99: 0 | L99: 0 | M99: 0 | O99: FALSE | P99: 0 | Q99: 0 | R99: 0 | S99: 0 | T99: 0 | V99: FALSE | W99: 0 | Y99: 0 | Z99: 0 | AB99: FALSE | AC99: 0 | AD99: 0 | AE99: 0 | AF99: 0 | AG99: 0 | AI99: FALSE | AJ99: 0 | AL99: 0 | AM99: 0 | AO99: FALSE | AP99: 0 | AQ99: 0 | AS99: FALSE | AT99: 0 | AV99: 0 | AW99: 0
G100: 0 | H100: 0 | I100: 0 | J100: 0 | K100: 0 | L100: 0 | M100: 0 | O100: FALSE | P100: 0 | Q100: 0 | R100: 0 | S100: 0 | T100: 0 | V100: FALSE | W100: 0 | Y100: 0 | Z100: 0 | AB100: FALSE | AC100: 0 | AD100: 0 | AE100: 0 | AF100: 0 | AG100: 0 | AI100: FALSE | AJ100: 0 | AL100: 0 | AM100: 0 | AO100: FALSE | AP100: 0 | AQ100: 0 | AS100: FALSE | AT100: 0 | AV100: 0 | AW100: 0
G101: 0 | H101: 0 | I101: 0 | J101: 0 | K101: 0 | L101: 0 | M101: 0 | O101: FALSE | P101: 0 | Q101: 0 | R101: 0 | S101: 0 | T101: 0 | V101: FALSE | W101: 0 | Y101: 0 | Z101: 0 | AB101: FALSE | AC101: 0 | AD101: 0 | AE101: 0 | AF101: 0 | AG101: 0 | AI101: FALSE | AJ101: 0 | AL101: 0 | AM101: 0 | AO101: FALSE | AP101: 0 | AQ101: 0 | AS101: FALSE | AT101: 0 | AV101: 0 | AW101: 0
G102: 0 | H102: 0 | I102: 0 | J102: 0 | K102: 0 | L102: 0 | M102: 0 | O102: FALSE | P102: 0 | Q102: 0 | R102: 0 | S102: 0 | T102: 0 | V102: FALSE | W102: 0 | Y102: 0 | Z102: 0 | AB102: FALSE | AC102: 0 | AD102: 0 | AE102: 0 | AF102: 0 | AG102: 0 | AI102: FALSE | AJ102: 0 | AL102: 0 | AM102: 0 | AO102: FALSE | AP102: 0 | AQ102: 0 | AS102: FALSE | AT102: 0 | AV102: 0 | AW102: 0
G103: 0 | H103: 0 | I103: 0 | J103: 0 | K103: 0 | L103: 0 | M103: 0 | O103: FALSE | P103: 0 | Q103: 0 | R103: 0 | S103: 0 | T103: 0 | V103: FALSE | W103: 0 | Y103: 0 | Z103: 0 | AB103: FALSE | AC103: 0 | AD103: 0 | AE103: 0 | AF103: 0 | AG103: 0 | AI103: FALSE | AJ103: 0 | AL103: 0 | AM103: 0 | AO103: FALSE | AP103: 0 | AQ103: 0 | AS103: FALSE | AT103: 0 | AV103: 0 | AW103: 0
G104: 0 | H104: 0 | I104: 0 | J104: 0 | K104: 0 | L104: 0 | M104: 0 | O104: FALSE | P104: 0 | Q104: 0 | R104: 0 | S104: 0 | T104: 0 | V104: FALSE | W104: 0 | Y104: 0 | Z104: 0 | AB104: FALSE | AC104: 0 | AD104: 0 | AE104: 0 | AF104: 0 | AG104: 0 | AI104: FALSE | AJ104: 0 | AL104: 0 | AM104: 0 | AO104: FALSE | AP104: 0 | AQ104: 0 | AS104: FALSE | AT104: 0 | AV104: 0 | AW104: 0
G105: 0 | H105: 0 | I105: 0 | J105: 0 | K105: 0 | L105: 0 | M105: 0 | O105: FALSE | P105: 0 | Q105: 0 | R105: 0 | S105: 0 | T105: 0 | V105: FALSE | W105: 0 | Y105: 0 | Z105: 0 | AB105: FALSE | AC105: 0 | AD105: 0 | AE105: 0 | AF105: 0 | AG105: 0 | AI105: FALSE | AJ105: 0 | AL105: 0 | AM105: 0 | AO105: FALSE | AP105: 0 | AQ105: 0 | AS105: FALSE | AT105: 0 | AV105: 0 | AW105: 0
G106: 0 | H106: 0 | I106: 0 | J106: 0 | K106: 0 | L106: 0 | M106: 0 | O106: FALSE | P106: 0 | Q106: 0 | R106: 0 | S106: 0 | T106: 0 | V106: FALSE | W106: 0 | Y106: 0 | Z106: 0 | AB106: FALSE | AC106: 0 | AD106: 0 | AE106: 0 | AF106: 0 | AG106: 0 | AI106: FALSE | AJ106: 0 | AL106: 0 | AM106: 0 | AO106: FALSE | AP106: 0 | AQ106: 0 | AS106: FALSE | AT106: 0 | AV106: 0 | AW106: 0
G107: 0 | H107: 0 | I107: 0 | J107: 0 | K107: 0 | L107: 0 | M107: 0 | O107: FALSE | P107: 0 | Q107: 0 | R107: 0 | S107: 0 | T107: 0 | V107: FALSE | W107: 0 | Y107: 0 | Z107: 0 | AB107: FALSE | AC107: 0 | AD107: 0 | AE107: 0 | AF107: 0 | AG107: 0 | AI107: FALSE | AJ107: 0 | AL107: 0 | AM107: 0 | AO107: FALSE | AP107: 0 | AQ107: 0 | AS107: FALSE | AT107: 0 | AV107: 0 | AW107: 0
G108: 0 | H108: 0 | I108: 0 | J108: 0 | K108: 0 | L108: 0 | M108: 0 | O108: FALSE | P108: 0 | Q108: 0 | R108: 0 | S108: 0 | T108: 0 | V108: FALSE | W108: 0 | Y108: 0 | Z108: 0 | AB108: FALSE | AC108: 0 | AD108: 0 | AE108: 0 | AF108: 0 | AG108: 0 | AI108: FALSE | AJ108: 0 | AL108: 0 | AM108: 0 | AO108: FALSE | AP108: 0 | AQ108: 0 | AS108: FALSE | AT108: 0 | AV108: 0 | AW108: 0
G109: 0 | H109: 0 | I109: 0 | J109: 0 | K109: 0 | L109: 0 | M109: 0 | O109: FALSE | P109: 0 | Q109: 0 | R109: 0 | S109: 0 | T109: 0 | V109: FALSE | W109: 0 | Y109: 0 | Z109: 0 | AB109: FALSE | AC109: 0 | AD109: 0 | AE109: 0 | AF109: 0 | AG109: 0 | AI109: FALSE | AJ109: 0 | AL109: 0 | AM109: 0 | AO109: FALSE | AP109: 0 | AQ109: 0 | AS109: FALSE | AT109: 0 | AV109: 0 | AW109: 0
G110: 0 | H110: 0 | I110: 0 | J110: 0 | K110: 0 | L110: 0 | M110: 0 | O110: FALSE | P110: 0 | Q110: 0 | R110: 0 | S110: 0 | T110: 0 | V110: FALSE | W110: 0 | Y110: 0 | Z110: 0 | AB110: FALSE | AC110: 0 | AD110: 0 | AE110: 0 | AF110: 0 | AG110: 0 | AI110: FALSE | AJ110: 0 | AL110: 0 | AM110: 0 | AO110: FALSE | AP110: 0 | AQ110: 0 | AS110: FALSE | AT110: 0 | AV110: 0 | AW110: 0
G111: 0 | H111: 0 | I111: 0 | J111: 0 | K111: 0 | L111: 0 | M111: 0 | O111: FALSE | P111: 0 | Q111: 0 | R111: 0 | S111: 0 | T111: 0 | V111: FALSE | W111: 0 | Y111: 0 | Z111: 0 | AB111: FALSE | AC111: 0 | AD111: 0 | AE111: 0 | AF111: 0 | AG111: 0 | AI111: FALSE | AJ111: 0 | AL111: 0 | AM111: 0 | AO111: FALSE | AP111: 0 | AQ111: 0 | AS111: FALSE | AT111: 0 | AV111: 0 | AW111: 0
G112: 0 | H112: 0 | I112: 0 | J112: 0 | K112: 0 | L112: 0 | M112: 0 | O112: FALSE | P112: 0 | Q112: 0 | R112: 0 | S112: 0 | T112: 0 | V112: FALSE | W112: 0 | Y112: 0 | Z112: 0 | AB112: FALSE | AC112: 0 | AD112: 0 | AE112: 0 | AF112: 0 | AG112: 0 | AI112: FALSE | AJ112: 0 | AL112: 0 | AM112: 0 | AO112: FALSE | AP112: 0 | AQ112: 0 | AS112: FALSE | AT112: 0 | AV112: 0 | AW112: 0
G113: =(IF(((E113/30)=INT(E113/30)),(E113/1000),((INT((E113/30)+1))*(30/1000))))*(IF(((F113/30)=INT(F113/30)),(F113/1000),((INT((F113/30)+1))*(30/1000)))) -> 0 | H113: =IF(G113<0.2,0.2,G113)*OR(IF(G113=0,0,G113)) -> 0 | I113: =H113*D113 -> 0 | J113: =IF(G113<0.5,0.5,G113)*OR(IF(G113=0,0,G113)) -> 0 | K113: =J113*D113 -> 0 | L113: =E113*F113/1000000 -> 0 | M113: =L113*D113 -> 0 | O113: FALSE | P113: 0 | Q113: 0 | R113: 0 | S113: =K113*R113 -> 0 | T113: 0 | V113: FALSE | W113: 0 | Y113: =W113*D113 -> 0 | Z113: =IF(W113>59.99,D113,0) -> 0 | AB113: FALSE | AC113: 0 | AD113: =IF(L113>5,AB113*0.1,0) -> 0 | AE113: 0 | AF113: =K113*(AB113+AC113+AD113) -> 0 | AG113: 0 | AI113: FALSE | AJ113: 0 | AL113: =AJ113*D113 -> 0 | AM113: =IF(AJ113>59.99,D113,0) -> 0 | AO113: FALSE | AP113: 0 | AQ113: 0 | AS113: FALSE | AT113: 0 | AV113: 0 | AW113: 0
G114: 0 | H114: 0 | I114: 0 | J114: 0 | K114: 0 | L114: 0 | M114: 0 | O114: FALSE | P114: =IF(OR(E114>P$13,F114>P$13),O114*Q$13,0) -> 0 | Q114: =IF(L114<5,0,VLOOKUP(L114,$O$15:$Q$17,3,1)) -> 0 | R114: =O114+P114+O114*Q114 -> 0 | S114: 0 | T114: 0 | V114: FALSE | W114: 0 | Y114: 0 | Z114: 0 | AB114: FALSE | AC114: =IF(OR(E114>3099,F114>3099),AB114*0.25,0) -> 0 | AD114: 0 | AE114: =SUM(AB114:AD114) -> 0 | AF114: 0 | AG114: 0 | AI114: FALSE | AJ114: 0 | AL114: 0 | AM114: 0 | AO114: FALSE | AP114: 0 | AQ114: 0 | AS114: FALSE | AT114: 0 | AV114: =AT114*D114 -> 0 | AW114: =IF(AT114>59.99,D114,0) -> 0
G115: 0 | H115: 0 | I115: 0 | J115: 0 | K115: 0 | L115: 0 | M115: 0 | O115: =IF(D115>0,VLOOKUP(B115,B$17:R$41,17)) -> FALSE | P115: 0 | Q115: 0 | R115: 0 | S115: 0 | T115: =K115*T$14 -> 0 | V115: =IF(D115>0,VLOOKUP(B115,B$17:U$41,20)) -> FALSE | W115: =V115*2.5*L115 -> 0 | Y115: 0 | Z115: 0 | AB115: =IF(D115>0,VLOOKUP(B115,B$17:AE$41,30)) -> FALSE | AC115: 0 | AD115: 0 | AE115: 0 | AF115: 0 | AG115: =K115*AG$14 -> 0 | AI115: =IF(D115>0,VLOOKUP(B115,B$17:AH$41,33)) -> FALSE | AJ115: =AI115*2.5*L115 -> 0 | AL115: 0 | AM115: 0 | AO115: =IF(D115>0,VLOOKUP(B115,B$17:AO$41,40)) -> FALSE | AP115: =AO115*K115 -> 0 | AQ115: =K115*AQ$14 -> 0 | AS115: =IF(D115>0,VLOOKUP(B115,B$17:AR$41,43)) -> FALSE | AT115: =AS115*2.5*L115 -> 0 | AV115: 0 | AW115: 0
G116: 0 | H116: 0 | I116: 0 | J116: 0 | K116: 0 | L116: 0 | M116: 0 | O116: FALSE | P116: 0 | Q116: 0 | R116: 0 | S116: 0 | T116: 0 | V116: FALSE | W116: 0 | Y116: 0 | Z116: 0 | AB116: FALSE | AC116: 0 | AD116: 0 | AE116: 0 | AF116: 0 | AG116: 0 | AI116: FALSE | AJ116: 0 | AL116: 0 | AM116: 0 | AO116: FALSE | AP116: 0 | AQ116: 0 | AS116: FALSE | AT116: 0 | AV116: 0 | AW116: 0
G117: 0 | H117: 0 | I117: 0 | J117: 0 | K117: 0 | L117: 0 | M117: 0 | O117: FALSE | P117: 0 | Q117: 0 | R117: 0 | S117: 0 | T117: 0 | V117: FALSE | W117: 0 | Y117: 0 | Z117: 0 | AB117: FALSE | AC117: 0 | AD117: 0 | AE117: 0 | AF117: 0 | AG117: 0 | AI117: FALSE | AJ117: 0 | AL117: 0 | AM117: 0 | AO117: FALSE | AP117: 0 | AQ117: 0 | AS117: FALSE | AT117: 0 | AV117: 0 | AW117: 0
G118: 0 | H118: 0 | I118: 0 | J118: 0 | K118: 0 | L118: 0 | M118: 0 | O118: FALSE | P118: 0 | Q118: 0 | R118: 0 | S118: 0 | T118: 0 | V118: FALSE | W118: 0 | Y118: 0 | Z118: 0 | AB118: FALSE | AC118: 0 | AD118: 0 | AE118: 0 | AF118: 0 | AG118: 0 | AI118: FALSE | AJ118: 0 | AL118: 0 | AM118: 0 | AO118: FALSE | AP118: 0 | AQ118: 0 | AS118: FALSE | AT118: 0 | AV118: 0 | AW118: 0
G119: 0 | H119: 0 | I119: 0 | J119: 0 | K119: 0 | L119: 0 | M119: 0 | O119: FALSE | P119: 0 | Q119: 0 | R119: 0 | S119: 0 | T119: 0 | V119: FALSE | W119: 0 | Y119: 0 | Z119: 0 | AB119: FALSE | AC119: 0 | AD119: 0 | AE119: 0 | AF119: 0 | AG119: 0 | AI119: FALSE | AJ119: 0 | AL119: 0 | AM119: 0 | AO119: FALSE | AP119: 0 | AQ119: 0 | AS119: FALSE | AT119: 0 | AV119: 0 | AW119: 0
G120: 0 | H120: 0 | I120: 0 | J120: 0 | K120: 0 | L120: 0 | M120: 0 | O120: FALSE | P120: 0 | Q120: 0 | R120: 0 | S120: 0 | T120: 0 | V120: FALSE | W120: 0 | Y120: 0 | Z120: 0 | AB120: FALSE | AC120: 0 | AD120: 0 | AE120: 0 | AF120: 0 | AG120: 0 | AI120: FALSE | AJ120: 0 | AL120: 0 | AM120: 0 | AO120: FALSE | AP120: 0 | AQ120: 0 | AS120: FALSE | AT120: 0 | AV120: 0 | AW120: 0
G121: 0 | H121: 0 | I121: 0 | J121: 0 | K121: 0 | L121: 0 | M121: 0 | O121: FALSE | P121: 0 | Q121: 0 | R121: 0 | S121: 0 | T121: 0 | V121: FALSE | W121: 0 | Y121: 0 | Z121: 0 | AB121: FALSE | AC121: 0 | AD121: 0 | AE121: 0 | AF121: 0 | AG121: 0 | AI121: FALSE | AJ121: 0 | AL121: 0 | AM121: 0 | AO121: FALSE | AP121: 0 | AQ121: 0 | AS121: FALSE | AT121: 0 | AV121: 0 | AW121: 0
G122: 0 | H122: 0 | I122: 0 | J122: 0 | K122: 0 | L122: 0 | M122: 0 | O122: FALSE | P122: 0 | Q122: 0 | R122: 0 | S122: 0 | T122: 0 | V122: FALSE | W122: 0 | Y122: 0 | Z122: 0 | AB122: FALSE | AC122: 0 | AD122: 0 | AE122: 0 | AF122: 0 | AG122: 0 | AI122: FALSE | AJ122: 0 | AL122: 0 | AM122: 0 | AO122: FALSE | AP122: 0 | AQ122: 0 | AS122: FALSE | AT122: 0 | AV122: 0 | AW122: 0
G123: 0 | H123: 0 | I123: 0 | J123: 0 | K123: 0 | L123: 0 | M123: 0 | O123: FALSE | P123: 0 | Q123: 0 | R123: 0 | S123: 0 | T123: 0 | V123: FALSE | W123: 0 | Y123: 0 | Z123: 0 | AB123: FALSE | AC123: 0 | AD123: 0 | AE123: 0 | AF123: 0 | AG123: 0 | AI123: FALSE | AJ123: 0 | AL123: 0 | AM123: 0 | AO123: FALSE | AP123: 0 | AQ123: 0 | AS123: FALSE | AT123: 0 | AV123: 0 | AW123: 0
G124: 0 | H124: 0 | I124: 0 | J124: 0 | K124: 0 | L124: 0 | M124: 0 | O124: FALSE | P124: 0 | Q124: 0 | R124: 0 | S124: 0 | T124: 0 | V124: FALSE | W124: 0 | Y124: 0 | Z124: 0 | AB124: FALSE | AC124: 0 | AD124: 0 | AE124: 0 | AF124: 0 | AG124: 0 | AI124: FALSE | AJ124: 0 | AL124: 0 | AM124: 0 | AO124: FALSE | AP124: 0 | AQ124: 0 | AS124: FALSE | AT124: 0 | AV124: 0 | AW124: 0
G125: 0 | H125: 0 | I125: 0 | J125: 0 | K125: 0 | L125: 0 | M125: 0 | O125: FALSE | P125: 0 | Q125: 0 | R125: 0 | S125: 0 | T125: 0 | V125: FALSE | W125: 0 | Y125: 0 | Z125: 0 | AB125: FALSE | AC125: 0 | AD125: 0 | AE125: 0 | AF125: 0 | AG125: 0 | AI125: FALSE | AJ125: 0 | AL125: 0 | AM125: 0 | AO125: FALSE | AP125: 0 | AQ125: 0 | AS125: FALSE | AT125: 0 | AV125: 0 | AW125: 0
G126: 0 | H126: 0 | I126: 0 | J126: 0 | K126: 0 | L126: 0 | M126: 0 | O126: FALSE | P126: 0 | Q126: 0 | R126: 0 | S126: 0 | T126: 0 | V126: FALSE | W126: 0 | Y126: 0 | Z126: 0 | AB126: FALSE | AC126: 0 | AD126: 0 | AE126: 0 | AF126: 0 | AG126: 0 | AI126: FALSE | AJ126: 0 | AL126: 0 | AM126: 0 | AO126: FALSE | AP126: 0 | AQ126: 0 | AS126: FALSE | AT126: 0 | AV126: 0 | AW126: 0
G127: 0 | H127: 0 | I127: 0 | J127: 0 | K127: 0 | L127: 0 | M127: 0 | O127: FALSE | P127: 0 | Q127: 0 | R127: 0 | S127: 0 | T127: 0 | V127: FALSE | W127: 0 | Y127: 0 | Z127: 0 | AB127: FALSE | AC127: 0 | AD127: 0 | AE127: 0 | AF127: 0 | AG127: 0 | AI127: FALSE | AJ127: 0 | AL127: 0 | AM127: 0 | AO127: FALSE | AP127: 0 | AQ127: 0 | AS127: FALSE | AT127: 0 | AV127: 0 | AW127: 0
G128: 0 | H128: 0 | I128: 0 | J128: 0 | K128: 0 | L128: 0 | M128: 0 | O128: FALSE | P128: 0 | Q128: 0 | R128: 0 | S128: 0 | T128: 0 | V128: FALSE | W128: 0 | Y128: 0 | Z128: 0 | AB128: FALSE | AC128: 0 | AD128: 0 | AE128: 0 | AF128: 0 | AG128: 0 | AI128: FALSE | AJ128: 0 | AL128: 0 | AM128: 0 | AO128: FALSE | AP128: 0 | AQ128: 0 | AS128: FALSE | AT128: 0 | AV128: 0 | AW128: 0
G129: 0 | H129: 0 | I129: 0 | J129: 0 | K129: 0 | L129: 0 | M129: 0 | O129: FALSE | P129: 0 | Q129: 0 | R129: 0 | S129: 0 | T129: 0 | V129: FALSE | W129: 0 | Y129: 0 | Z129: 0 | AB129: FALSE | AC129: 0 | AD129: 0 | AE129: 0 | AF129: 0 | AG129: 0 | AI129: FALSE | AJ129: 0 | AL129: 0 | AM129: 0 | AO129: FALSE | AP129: 0 | AQ129: 0 | AS129: FALSE | AT129: 0 | AV129: 0 | AW129: 0
G130: 0 | H130: 0 | I130: 0 | J130: 0 | K130: 0 | L130: 0 | M130: 0 | O130: FALSE | P130: 0 | Q130: 0 | R130: 0 | S130: 0 | T130: 0 | V130: FALSE | W130: 0 | Y130: 0 | Z130: 0 | AB130: FALSE | AC130: 0 | AD130: 0 | AE130: 0 | AF130: 0 | AG130: 0 | AI130: FALSE | AJ130: 0 | AL130: 0 | AM130: 0 | AO130: FALSE | AP130: 0 | AQ130: 0 | AS130: FALSE | AT130: 0 | AV130: 0 | AW130: 0
G131: 0 | H131: 0 | I131: 0 | J131: 0 | K131: 0 | L131: 0 | M131: 0 | O131: FALSE | P131: 0 | Q131: 0 | R131: 0 | S131: 0 | T131: 0 | V131: FALSE | W131: 0 | Y131: 0 | Z131: 0 | AB131: FALSE | AC131: 0 | AD131: 0 | AE131: 0 | AF131: 0 | AG131: 0 | AI131: FALSE | AJ131: 0 | AL131: 0 | AM131: 0 | AO131: FALSE | AP131: 0 | AQ131: 0 | AS131: FALSE | AT131: 0 | AV131: 0 | AW131: 0
G132: 0 | H132: 0 | I132: 0 | J132: 0 | K132: 0 | L132: 0 | M132: 0 | O132: FALSE | P132: 0 | Q132: 0 | R132: 0 | S132: 0 | T132: 0 | V132: FALSE | W132: 0 | Y132: 0 | Z132: 0 | AB132: FALSE | AC132: 0 | AD132: 0 | AE132: 0 | AF132: 0 | AG132: 0 | AI132: FALSE | AJ132: 0 | AL132: 0 | AM132: 0 | AO132: FALSE | AP132: 0 | AQ132: 0 | AS132: FALSE | AT132: 0 | AV132: 0 | AW132: 0
G133: 0 | H133: 0 | I133: 0 | J133: 0 | K133: 0 | L133: 0 | M133: 0 | O133: FALSE | P133: 0 | Q133: 0 | R133: 0 | S133: 0 | T133: 0 | V133: FALSE | W133: 0 | Y133: 0 | Z133: 0 | AB133: FALSE | AC133: 0 | AD133: 0 | AE133: 0 | AF133: 0 | AG133: 0 | AI133: FALSE | AJ133: 0 | AL133: 0 | AM133: 0 | AO133: FALSE | AP133: 0 | AQ133: 0 | AS133: FALSE | AT133: 0 | AV133: 0 | AW133: 0
G134: 0 | H134: 0 | I134: 0 | J134: 0 | K134: 0 | L134: 0 | M134: 0 | O134: FALSE | P134: 0 | Q134: 0 | R134: 0 | S134: 0 | T134: 0 | V134: FALSE | W134: 0 | Y134: 0 | Z134: 0 | AB134: FALSE | AC134: 0 | AD134: 0 | AE134: 0 | AF134: 0 | AG134: 0 | AI134: FALSE | AJ134: 0 | AL134: 0 | AM134: 0 | AO134: FALSE | AP134: 0 | AQ134: 0 | AS134: FALSE | AT134: 0 | AV134: 0 | AW134: 0
G135: 0 | H135: 0 | I135: 0 | J135: 0 | K135: 0 | L135: 0 | M135: 0 | O135: FALSE | P135: 0 | Q135: 0 | R135: 0 | S135: 0 | T135: 0 | V135: FALSE | W135: 0 | Y135: 0 | Z135: 0 | AB135: FALSE | AC135: 0 | AD135: 0 | AE135: 0 | AF135: 0 | AG135: 0 | AI135: FALSE | AJ135: 0 | AL135: 0 | AM135: 0 | AO135: FALSE | AP135: 0 | AQ135: 0 | AS135: FALSE | AT135: 0 | AV135: 0 | AW135: 0
G136: 0 | H136: 0 | I136: 0 | J136: 0 | K136: 0 | L136: 0 | M136: 0 | O136: FALSE | P136: 0 | Q136: 0 | R136: 0 | S136: 0 | T136: 0 | V136: FALSE | W136: 0 | Y136: 0 | Z136: 0 | AB136: FALSE | AC136: 0 | AD136: 0 | AE136: 0 | AF136: 0 | AG136: 0 | AI136: FALSE | AJ136: 0 | AL136: 0 | AM136: 0 | AO136: FALSE | AP136: 0 | AQ136: 0 | AS136: FALSE | AT136: 0 | AV136: 0 | AW136: 0
G137: 0 | H137: 0 | I137: 0 | J137: 0 | K137: 0 | L137: 0 | M137: 0 | O137: FALSE | P137: 0 | Q137: 0 | R137: 0 | S137: 0 | T137: 0 | V137: FALSE | W137: 0 | Y137: 0 | Z137: 0 | AB137: FALSE | AC137: 0 | AD137: 0 | AE137: 0 | AF137: 0 | AG137: 0 | AI137: FALSE | AJ137: 0 | AL137: 0 | AM137: 0 | AO137: FALSE | AP137: 0 | AQ137: 0 | AS137: FALSE | AT137: 0 | AV137: 0 | AW137: 0
G138: 0 | H138: 0 | I138: 0 | J138: 0 | K138: 0 | L138: 0 | M138: 0 | O138: FALSE | P138: 0 | Q138: 0 | R138: 0 | S138: 0 | T138: 0 | V138: FALSE | W138: 0 | Y138: 0 | Z138: 0 | AB138: FALSE | AC138: 0 | AD138: 0 | AE138: 0 | AF138: 0 | AG138: 0 | AI138: FALSE | AJ138: 0 | AL138: 0 | AM138: 0 | AO138: FALSE | AP138: 0 | AQ138: 0 | AS138: FALSE | AT138: 0 | AV138: 0 | AW138: 0
G139: 0 | H139: 0 | I139: 0 | J139: 0 | K139: 0 | L139: 0 | M139: 0 | O139: FALSE | P139: 0 | Q139: 0 | R139: 0 | S139: 0 | T139: 0 | V139: FALSE | W139: 0 | Y139: 0 | Z139: 0 | AB139: FALSE | AC139: 0 | AD139: 0 | AE139: 0 | AF139: 0 | AG139: 0 | AI139: FALSE | AJ139: 0 | AL139: 0 | AM139: 0 | AO139: FALSE | AP139: 0 | AQ139: 0 | AS139: FALSE | AT139: 0 | AV139: 0 | AW139: 0
G140: 0 | H140: 0 | I140: 0 | J140: 0 | K140: 0 | L140: 0 | M140: 0 | O140: FALSE | P140: 0 | Q140: 0 | R140: 0 | S140: 0 | T140: 0 | V140: FALSE | W140: 0 | Y140: 0 | Z140: 0 | AB140: FALSE | AC140: 0 | AD140: 0 | AE140: 0 | AF140: 0 | AG140: 0 | AI140: FALSE | AJ140: 0 | AL140: 0 | AM140: 0 | AO140: FALSE | AP140: 0 | AQ140: 0 | AS140: FALSE | AT140: 0 | AV140: 0 | AW140: 0
G141: 0 | H141: 0 | I141: 0 | J141: 0 | K141: 0 | L141: 0 | M141: 0 | O141: FALSE | P141: 0 | Q141: 0 | R141: 0 | S141: 0 | T141: 0 | V141: FALSE | W141: 0 | Y141: 0 | Z141: 0 | AB141: FALSE | AC141: 0 | AD141: 0 | AE141: 0 | AF141: 0 | AG141: 0 | AI141: FALSE | AJ141: 0 | AL141: 0 | AM141: 0 | AO141: FALSE | AP141: 0 | AQ141: 0 | AS141: FALSE | AT141: 0 | AV141: 0 | AW141: 0
G142: 0 | H142: 0 | I142: 0 | J142: 0 | K142: 0 | L142: 0 | M142: 0 | O142: FALSE | P142: 0 | Q142: 0 | R142: 0 | S142: 0 | T142: 0 | V142: FALSE | W142: 0 | Y142: 0 | Z142: 0 | AB142: FALSE | AC142: 0 | AD142: 0 | AE142: 0 | AF142: 0 | AG142: 0 | AI142: FALSE | AJ142: 0 | AL142: 0 | AM142: 0 | AO142: FALSE | AP142: 0 | AQ142: 0 | AS142: FALSE | AT142: 0 | AV142: 0 | AW142: 0
G143: 0 | H143: 0 | I143: 0 | J143: 0 | K143: 0 | L143: 0 | M143: 0 | O143: FALSE | P143: 0 | Q143: 0 | R143: 0 | S143: 0 | T143: 0 | V143: FALSE | W143: 0 | Y143: 0 | Z143: 0 | AB143: FALSE | AC143: 0 | AD143: 0 | AE143: 0 | AF143: 0 | AG143: 0 | AI143: FALSE | AJ143: 0 | AL143: 0 | AM143: 0 | AO143: FALSE | AP143: 0 | AQ143: 0 | AS143: FALSE | AT143: 0 | AV143: 0 | AW143: 0
G144: 0 | H144: 0 | I144: 0 | J144: 0 | K144: 0 | L144: 0 | M144: 0 | O144: FALSE | P144: 0 | Q144: 0 | R144: 0 | S144: 0 | T144: 0 | V144: FALSE | W144: 0 | Y144: 0 | Z144: 0 | AB144: FALSE | AC144: 0 | AD144: 0 | AE144: 0 | AF144: 0 | AG144: 0 | AI144: FALSE | AJ144: 0 | AL144: 0 | AM144: 0 | AO144: FALSE | AP144: 0 | AQ144: 0 | AS144: FALSE | AT144: 0 | AV144: 0 | AW144: 0
G145: 0 | H145: 0 | I145: 0 | J145: 0 | K145: 0 | L145: 0 | M145: 0 | O145: FALSE | P145: 0 | Q145: 0 | R145: 0 | S145: 0 | T145: 0 | V145: FALSE | W145: 0 | Y145: 0 | Z145: 0 | AB145: FALSE | AC145: 0 | AD145: 0 | AE145: 0 | AF145: 0 | AG145: 0 | AI145: FALSE | AJ145: 0 | AL145: 0 | AM145: 0 | AO145: FALSE | AP145: 0 | AQ145: 0 | AS145: FALSE | AT145: 0 | AV145: 0 | AW145: 0
G146: 0 | H146: 0 | I146: 0 | J146: 0 | K146: 0 | L146: 0 | M146: 0 | O146: FALSE | P146: 0 | Q146: 0 | R146: 0 | S146: 0 | T146: 0 | V146: FALSE | W146: 0 | Y146: 0 | Z146: 0 | AB146: FALSE | AC146: 0 | AD146: 0 | AE146: 0 | AF146: 0 | AG146: 0 | AI146: FALSE | AJ146: 0 | AL146: 0 | AM146: 0 | AO146: FALSE | AP146: 0 | AQ146: 0 | AS146: FALSE | AT146: 0 | AV146: 0 | AW146: 0
G147: 0 | H147: 0 | I147: 0 | J147: 0 | K147: 0 | L147: 0 | M147: 0 | O147: FALSE | P147: 0 | Q147: 0 | R147: 0 | S147: 0 | T147: 0 | V147: FALSE | W147: 0 | Y147: 0 | Z147: 0 | AB147: FALSE | AC147: 0 | AD147: 0 | AE147: 0 | AF147: 0 | AG147: 0 | AI147: FALSE | AJ147: 0 | AL147: 0 | AM147: 0 | AO147: FALSE | AP147: 0 | AQ147: 0 | AS147: FALSE | AT147: 0 | AV147: 0 | AW147: 0
G148: 0 | H148: 0 | I148: 0 | J148: 0 | K148: 0 | L148: 0 | M148: 0 | O148: FALSE | P148: 0 | Q148: 0 | R148: 0 | S148: 0 | T148: 0 | V148: FALSE | W148: 0 | Y148: 0 | Z148: 0 | AB148: FALSE | AC148: 0 | AD148: 0 | AE148: 0 | AF148: 0 | AG148: 0 | AI148: FALSE | AJ148: 0 | AL148: 0 | AM148: 0 | AO148: FALSE | AP148: 0 | AQ148: 0 | AS148: FALSE | AT148: 0 | AV148: 0 | AW148: 0
G149: 0 | H149: 0 | I149: 0 | J149: 0 | K149: 0 | L149: 0 | M149: 0 | O149: FALSE | P149: 0 | Q149: 0 | R149: 0 | S149: 0 | T149: 0 | V149: FALSE | W149: 0 | Y149: 0 | Z149: 0 | AB149: FALSE | AC149: 0 | AD149: 0 | AE149: 0 | AF149: 0 | AG149: 0 | AI149: FALSE | AJ149: 0 | AL149: 0 | AM149: 0 | AO149: FALSE | AP149: 0 | AQ149: 0 | AS149: FALSE | AT149: 0 | AV149: 0 | AW149: 0
G150: 0 | H150: 0 | I150: 0 | J150: 0 | K150: 0 | L150: 0 | M150: 0 | O150: FALSE | P150: 0 | Q150: 0 | R150: 0 | S150: 0 | T150: 0 | V150: FALSE | W150: 0 | Y150: 0 | Z150: 0 | AB150: FALSE | AC150: 0 | AD150: 0 | AE150: 0 | AF150: 0 | AG150: 0 | AI150: FALSE | AJ150: 0 | AL150: 0 | AM150: 0 | AO150: FALSE | AP150: 0 | AQ150: 0 | AS150: FALSE | AT150: 0 | AV150: 0 | AW150: 0
G151: 0 | H151: 0 | I151: 0 | J151: 0 | K151: 0 | L151: 0 | M151: 0 | O151: FALSE | P151: 0 | Q151: 0 | R151: 0 | S151: 0 | T151: 0 | V151: FALSE | W151: 0 | Y151: 0 | Z151: 0 | AB151: FALSE | AC151: 0 | AD151: 0 | AE151: 0 | AF151: 0 | AG151: 0 | AI151: FALSE | AJ151: 0 | AL151: 0 | AM151: 0 | AO151: FALSE | AP151: 0 | AQ151: 0 | AS151: FALSE | AT151: 0 | AV151: 0 | AW151: 0
G152: 0 | H152: 0 | I152: 0 | J152: 0 | K152: 0 | L152: 0 | M152: 0 | O152: FALSE | P152: 0 | Q152: 0 | R152: 0 | S152: 0 | T152: 0 | V152: FALSE | W152: 0 | Y152: 0 | Z152: 0 | AB152: FALSE | AC152: 0 | AD152: 0 | AE152: 0 | AF152: 0 | AG152: 0 | AI152: FALSE | AJ152: 0 | AL152: 0 | AM152: 0 | AO152: FALSE | AP152: 0 | AQ152: 0 | AS152: FALSE | AT152: 0 | AV152: 0 | AW152: 0
G153: 0 | H153: 0 | I153: 0 | J153: 0 | K153: 0 | L153: 0 | M153: 0 | O153: FALSE | P153: 0 | Q153: 0 | R153: 0 | S153: 0 | T153: 0 | V153: FALSE | W153: 0 | Y153: 0 | Z153: 0 | AB153: FALSE | AC153: 0 | AD153: 0 | AE153: 0 | AF153: 0 | AG153: 0 | AI153: FALSE | AJ153: 0 | AL153: 0 | AM153: 0 | AO153: FALSE | AP153: 0 | AQ153: 0 | AS153: FALSE | AT153: 0 | AV153: 0 | AW153: 0
G154: 0 | H154: 0 | I154: 0 | J154: 0 | K154: 0 | L154: 0 | M154: 0 | O154: FALSE | P154: 0 | Q154: 0 | R154: 0 | S154: 0 | T154: 0 | V154: FALSE | W154: 0 | Y154: 0 | Z154: 0 | AB154: FALSE | AC154: 0 | AD154: 0 | AE154: 0 | AF154: 0 | AG154: 0 | AI154: FALSE | AJ154: 0 | AL154: 0 | AM154: 0 | AO154: FALSE | AP154: 0 | AQ154: 0 | AS154: FALSE | AT154: 0 | AV154: 0 | AW154: 0
G155: 0 | H155: 0 | I155: 0 | J155: 0 | K155: 0 | L155: 0 | M155: 0 | O155: FALSE | P155: 0 | Q155: 0 | R155: 0 | S155: 0 | T155: 0 | V155: FALSE | W155: 0 | Y155: 0 | Z155: 0 | AB155: FALSE | AC155: 0 | AD155: 0 | AE155: 0 | AF155: 0 | AG155: 0 | AI155: FALSE | AJ155: 0 | AL155: 0 | AM155: 0 | AO155: FALSE | AP155: 0 | AQ155: 0 | AS155: FALSE | AT155: 0 | AV155: 0 | AW155: 0
G156: 0 | H156: 0 | I156: 0 | J156: 0 | K156: 0 | L156: 0 | M156: 0 | O156: FALSE | P156: 0 | Q156: 0 | R156: 0 | S156: 0 | T156: 0 | V156: FALSE | W156: 0 | Y156: 0 | Z156: 0 | AB156: FALSE | AC156: 0 | AD156: 0 | AE156: 0 | AF156: 0 | AG156: 0 | AI156: FALSE | AJ156: 0 | AL156: 0 | AM156: 0 | AO156: FALSE | AP156: 0 | AQ156: 0 | AS156: FALSE | AT156: 0 | AV156: 0 | AW156: 0
G157: 0 | H157: 0 | I157: 0 | J157: 0 | K157: 0 | L157: 0 | M157: 0 | O157: FALSE | P157: 0 | Q157: 0 | R157: 0 | S157: 0 | T157: 0 | V157: FALSE | W157: 0 | Y157: 0 | Z157: 0 | AB157: FALSE | AC157: 0 | AD157: 0 | AE157: 0 | AF157: 0 | AG157: 0 | AI157: FALSE | AJ157: 0 | AL157: 0 | AM157: 0 | AO157: FALSE | AP157: 0 | AQ157: 0 | AS157: FALSE | AT157: 0 | AV157: 0 | AW157: 0
G158: 0 | H158: 0 | I158: 0 | J158: 0 | K158: 0 | L158: 0 | M158: 0 | O158: FALSE | P158: 0 | Q158: 0 | R158: 0 | S158: 0 | T158: 0 | V158: FALSE | W158: 0 | Y158: 0 | Z158: 0 | AB158: FALSE | AC158: 0 | AD158: 0 | AE158: 0 | AF158: 0 | AG158: 0 | AI158: FALSE | AJ158: 0 | AL158: 0 | AM158: 0 | AO158: FALSE | AP158: 0 | AQ158: 0 | AS158: FALSE | AT158: 0 | AV158: 0 | AW158: 0
G159: 0 | H159: 0 | I159: 0 | J159: 0 | K159: 0 | L159: 0 | M159: 0 | O159: FALSE | P159: 0 | Q159: 0 | R159: 0 | S159: 0 | T159: 0 | V159: FALSE | W159: 0 | Y159: 0 | Z159: 0 | AB159: FALSE | AC159: 0 | AD159: 0 | AE159: 0 | AF159: 0 | AG159: 0 | AI159: FALSE | AJ159: 0 | AL159: 0 | AM159: 0 | AO159: FALSE | AP159: 0 | AQ159: 0 | AS159: FALSE | AT159: 0 | AV159: 0 | AW159: 0
G160: 0 | H160: 0 | I160: 0 | J160: 0 | K160: 0 | L160: 0 | M160: 0 | O160: FALSE | P160: 0 | Q160: 0 | R160: 0 | S160: 0 | T160: 0 | V160: FALSE | W160: 0 | Y160: 0 | Z160: 0 | AB160: FALSE | AC160: 0 | AD160: 0 | AE160: 0 | AF160: 0 | AG160: 0 | AI160: FALSE | AJ160: 0 | AL160: 0 | AM160: 0 | AO160: FALSE | AP160: 0 | AQ160: 0 | AS160: FALSE | AT160: 0 | AV160: 0 | AW160: 0
G161: 0 | H161: 0 | I161: 0 | J161: 0 | K161: 0 | L161: 0 | M161: 0 | O161: FALSE | P161: 0 | Q161: 0 | R161: 0 | S161: 0 | T161: 0 | V161: FALSE | W161: 0 | Y161: 0 | Z161: 0 | AB161: FALSE | AC161: 0 | AD161: 0 | AE161: 0 | AF161: 0 | AG161: 0 | AI161: FALSE | AJ161: 0 | AL161: 0 | AM161: 0 | AO161: FALSE | AP161: 0 | AQ161: 0 | AS161: FALSE | AT161: 0 | AV161: 0 | AW161: 0
G162: 0 | H162: 0 | I162: 0 | J162: 0 | K162: 0 | L162: 0 | M162: 0 | O162: FALSE | P162: 0 | Q162: 0 | R162: 0 | S162: 0 | T162: 0 | V162: FALSE | W162: 0 | Y162: 0 | Z162: 0 | AB162: FALSE | AC162: 0 | AD162: 0 | AE162: 0 | AF162: 0 | AG162: 0 | AI162: FALSE | AJ162: 0 | AL162: 0 | AM162: 0 | AO162: FALSE | AP162: 0 | AQ162: 0 | AS162: FALSE | AT162: 0 | AV162: 0 | AW162: 0
G163: 0 | H163: 0 | I163: 0 | J163: 0 | K163: 0 | L163: 0 | M163: 0 | O163: FALSE | P163: 0 | Q163: 0 | R163: 0 | S163: 0 | T163: 0 | V163: FALSE | W163: 0 | Y163: 0 | Z163: 0 | AB163: FALSE | AC163: 0 | AD163: 0 | AE163: 0 | AF163: 0 | AG163: 0 | AI163: FALSE | AJ163: 0 | AL163: 0 | AM163: 0 | AO163: FALSE | AP163: 0 | AQ163: 0 | AS163: FALSE | AT163: 0 | AV163: 0 | AW163: 0
G164: 0 | H164: 0 | I164: 0 | J164: 0 | K164: 0 | L164: 0 | M164: 0 | O164: FALSE | P164: 0 | Q164: 0 | R164: 0 | S164: 0 | T164: 0 | V164: FALSE | W164: 0 | Y164: 0 | Z164: 0 | AB164: FALSE | AC164: 0 | AD164: 0 | AE164: 0 | AF164: 0 | AG164: 0 | AI164: FALSE | AJ164: 0 | AL164: 0 | AM164: 0 | AO164: FALSE | AP164: 0 | AQ164: 0 | AS164: FALSE | AT164: 0 | AV164: 0 | AW164: 0
G165: 0 | H165: 0 | I165: 0 | J165: 0 | K165: 0 | L165: 0 | M165: 0 | O165: FALSE | P165: 0 | Q165: 0 | R165: 0 | S165: 0 | T165: 0 | V165: FALSE | W165: 0 | Y165: 0 | Z165: 0 | AB165: FALSE | AC165: 0 | AD165: 0 | AE165: 0 | AF165: 0 | AG165: 0 | AI165: FALSE | AJ165: 0 | AL165: 0 | AM165: 0 | AO165: FALSE | AP165: 0 | AQ165: 0 | AS165: FALSE | AT165: 0 | AV165: 0 | AW165: 0
G166: 0 | H166: 0 | I166: 0 | J166: 0 | K166: 0 | L166: 0 | M166: 0 | O166: FALSE | P166: 0 | Q166: 0 | R166: 0 | S166: 0 | T166: 0 | V166: FALSE | W166: 0 | Y166: 0 | Z166: 0 | AB166: FALSE | AC166: 0 | AD166: 0 | AE166: 0 | AF166: 0 | AG166: 0 | AI166: FALSE | AJ166: 0 | AL166: 0 | AM166: 0 | AO166: FALSE | AP166: 0 | AQ166: 0 | AS166: FALSE | AT166: 0 | AV166: 0 | AW166: 0
G167: 0 | H167: 0 | I167: 0 | J167: 0 | K167: 0 | L167: 0 | M167: 0 | O167: FALSE | P167: 0 | Q167: 0 | R167: 0 | S167: 0 | T167: 0 | V167: FALSE | W167: 0 | Y167: 0 | Z167: 0 | AB167: FALSE | AC167: 0 | AD167: 0 | AE167: 0 | AF167: 0 | AG167: 0 | AI167: FALSE | AJ167: 0 | AL167: 0 | AM167: 0 | AO167: FALSE | AP167: 0 | AQ167: 0 | AS167: FALSE | AT167: 0 | AV167: 0 | AW167: 0
G168: 0 | H168: 0 | I168: 0 | J168: 0 | K168: 0 | L168: 0 | M168: 0 | O168: FALSE | P168: 0 | Q168: 0 | R168: 0 | S168: 0 | T168: 0 | V168: FALSE | W168: 0 | Y168: 0 | Z168: 0 | AB168: FALSE | AC168: 0 | AD168: 0 | AE168: 0 | AF168: 0 | AG168: 0 | AI168: FALSE | AJ168: 0 | AL168: 0 | AM168: 0 | AO168: FALSE | AP168: 0 | AQ168: 0 | AS168: FALSE | AT168: 0 | AV168: 0 | AW168: 0
G169: 0 | H169: 0 | I169: 0 | J169: 0 | K169: 0 | L169: 0 | M169: 0 | O169: FALSE | P169: 0 | Q169: 0 | R169: 0 | S169: 0 | T169: 0 | V169: FALSE | W169: 0 | Y169: 0 | Z169: 0 | AB169: FALSE | AC169: 0 | AD169: 0 | AE169: 0 | AF169: 0 | AG169: 0 | AI169: FALSE | AJ169: 0 | AL169: 0 | AM169: 0 | AO169: FALSE | AP169: 0 | AQ169: 0 | AS169: FALSE | AT169: 0 | AV169: 0 | AW169: 0
G170: 0 | H170: 0 | I170: 0 | J170: 0 | K170: 0 | L170: 0 | M170: 0 | O170: FALSE | P170: 0 | Q170: 0 | R170: 0 | S170: 0 | T170: 0 | V170: FALSE | W170: 0 | Y170: 0 | Z170: 0 | AB170: FALSE | AC170: 0 | AD170: 0 | AE170: 0 | AF170: 0 | AG170: 0 | AI170: FALSE | AJ170: 0 | AL170: 0 | AM170: 0 | AO170: FALSE | AP170: 0 | AQ170: 0 | AS170: FALSE | AT170: 0 | AV170: 0 | AW170: 0
G171: 0 | H171: 0 | I171: 0 | J171: 0 | K171: 0 | L171: 0 | M171: 0 | O171: FALSE | P171: 0 | Q171: 0 | R171: 0 | S171: 0 | T171: 0 | V171: FALSE | W171: 0 | Y171: 0 | Z171: 0 | AB171: FALSE | AC171: 0 | AD171: 0 | AE171: 0 | AF171: 0 | AG171: 0 | AI171: FALSE | AJ171: 0 | AL171: 0 | AM171: 0 | AO171: FALSE | AP171: 0 | AQ171: 0 | AS171: FALSE | AT171: 0 | AV171: 0 | AW171: 0
G172: 0 | H172: 0 | I172: 0 | J172: 0 | K172: 0 | L172: 0 | M172: 0 | O172: FALSE | P172: 0 | Q172: 0 | R172: 0 | S172: 0 | T172: 0 | V172: FALSE | W172: 0 | Y172: 0 | Z172: 0 | AB172: FALSE | AC172: 0 | AD172: 0 | AE172: 0 | AF172: 0 | AG172: 0 | AI172: FALSE | AJ172: 0 | AL172: 0 | AM172: 0 | AO172: FALSE | AP172: 0 | AQ172: 0 | AS172: FALSE | AT172: 0 | AV172: 0 | AW172: 0
G173: 0 | H173: 0 | I173: 0 | J173: 0 | K173: 0 | L173: 0 | M173: 0 | O173: FALSE | P173: 0 | Q173: 0 | R173: 0 | S173: 0 | T173: 0 | V173: FALSE | W173: 0 | Y173: 0 | Z173: 0 | AB173: FALSE | AC173: 0 | AD173: 0 | AE173: 0 | AF173: 0 | AG173: 0 | AI173: FALSE | AJ173: 0 | AL173: 0 | AM173: 0 | AO173: FALSE | AP173: 0 | AQ173: 0 | AS173: FALSE | AT173: 0 | AV173: 0 | AW173: 0
G174: 0 | H174: 0 | I174: 0 | J174: 0 | K174: 0 | L174: 0 | M174: 0 | O174: FALSE | P174: 0 | Q174: 0 | R174: 0 | S174: 0 | T174: 0 | V174: FALSE | W174: 0 | Y174: 0 | Z174: 0 | AB174: FALSE | AC174: 0 | AD174: 0 | AE174: 0 | AF174: 0 | AG174: 0 | AI174: FALSE | AJ174: 0 | AL174: 0 | AM174: 0 | AO174: FALSE | AP174: 0 | AQ174: 0 | AS174: FALSE | AT174: 0 | AV174: 0 | AW174: 0
G175: 0 | H175: 0 | I175: 0 | J175: 0 | K175: 0 | L175: 0 | M175: 0 | O175: FALSE | P175: 0 | Q175: 0 | R175: 0 | S175: 0 | T175: 0 | V175: FALSE | W175: 0 | Y175: 0 | Z175: 0 | AB175: FALSE | AC175: 0 | AD175: 0 | AE175: 0 | AF175: 0 | AG175: 0 | AI175: FALSE | AJ175: 0 | AL175: 0 | AM175: 0 | AO175: FALSE | AP175: 0 | AQ175: 0 | AS175: FALSE | AT175: 0 | AV175: 0 | AW175: 0
G176: 0 | H176: 0 | I176: 0 | J176: 0 | K176: 0 | L176: 0 | M176: 0 | O176: FALSE | P176: 0 | Q176: 0 | R176: 0 | S176: 0 | T176: 0 | V176: FALSE | W176: 0 | Y176: 0 | Z176: 0 | AB176: FALSE | AC176: 0 | AD176: 0 | AE176: 0 | AF176: 0 | AG176: 0 | AI176: FALSE | AJ176: 0 | AL176: 0 | AM176: 0 | AO176: FALSE | AP176: 0 | AQ176: 0 | AS176: FALSE | AT176: 0 | AV176: 0 | AW176: 0
G177: =(IF(((E177/30)=INT(E177/30)),(E177/1000),((INT((E177/30)+1))*(30/1000))))*(IF(((F177/30)=INT(F177/30)),(F177/1000),((INT((F177/30)+1))*(30/1000)))) -> 0 | H177: =IF(G177<0.2,0.2,G177)*OR(IF(G177=0,0,G177)) -> 0 | I177: =H177*D177 -> 0 | J177: =IF(G177<0.5,0.5,G177)*OR(IF(G177=0,0,G177)) -> 0 | K177: =J177*D177 -> 0 | L177: =E177*F177/1000000 -> 0 | M177: =L177*D177 -> 0 | O177: FALSE | P177: 0 | Q177: 0 | R177: 0 | S177: =K177*R177 -> 0 | T177: 0 | V177: FALSE | W177: 0 | Y177: =W177*D177 -> 0 | Z177: =IF(W177>59.99,D177,0) -> 0 | AB177: FALSE | AC177: 0 | AD177: =IF(L177>5,AB177*0.1,0) -> 0 | AE177: 0 | AF177: =K177*(AB177+AC177+AD177) -> 0 | AG177: 0 | AI177: FALSE | AJ177: 0 | AL177: =AJ177*D177 -> 0 | AM177: =IF(AJ177>59.99,D177,0) -> 0 | AO177: FALSE | AP177: 0 | AQ177: 0 | AS177: FALSE | AT177: 0 | AV177: 0 | AW177: 0
G178: 0 | H178: 0 | I178: 0 | J178: 0 | K178: 0 | L178: 0 | M178: 0 | O178: FALSE | P178: =IF(OR(E178>P$13,F178>P$13),O178*Q$13,0) -> 0 | Q178: =IF(L178<5,0,VLOOKUP(L178,$O$15:$Q$17,3,1)) -> 0 | R178: =O178+P178+O178*Q178 -> 0 | S178: 0 | T178: 0 | V178: FALSE | W178: 0 | Y178: 0 | Z178: 0 | AB178: FALSE | AC178: =IF(OR(E178>3099,F178>3099),AB178*0.25,0) -> 0 | AD178: 0 | AE178: =SUM(AB178:AD178) -> 0 | AF178: 0 | AG178: 0 | AI178: FALSE | AJ178: 0 | AL178: 0 | AM178: 0 | AO178: FALSE | AP178: 0 | AQ178: 0 | AS178: FALSE | AT178: 0 | AV178: =AT178*D178 -> 0 | AW178: =IF(AT178>59.99,D178,0) -> 0
G179: 0 | H179: 0 | I179: 0 | J179: 0 | K179: 0 | L179: 0 | M179: 0 | O179: =IF(D179>0,VLOOKUP(B179,B$17:R$41,17)) -> FALSE | P179: 0 | Q179: 0 | R179: 0 | S179: 0 | T179: =K179*T$14 -> 0 | V179: =IF(D179>0,VLOOKUP(B179,B$17:U$41,20)) -> FALSE | W179: =V179*2.5*L179 -> 0 | Y179: 0 | Z179: 0 | AB179: =IF(D179>0,VLOOKUP(B179,B$17:AE$41,30)) -> FALSE | AC179: 0 | AD179: 0 | AE179: 0 | AF179: 0 | AG179: =K179*AG$14 -> 0 | AI179: =IF(D179>0,VLOOKUP(B179,B$17:AH$41,33)) -> FALSE | AJ179: =AI179*2.5*L179 -> 0 | AL179: 0 | AM179: 0 | AO179: =IF(D179>0,VLOOKUP(B179,B$17:AO$41,40)) -> FALSE | AP179: =AO179*K179 -> 0 | AQ179: =K179*AQ$14 -> 0 | AS179: =IF(D179>0,VLOOKUP(B179,B$17:AR$41,43)) -> FALSE | AT179: =AS179*2.5*L179 -> 0 | AV179: 0 | AW179: 0
G180: 0 | H180: 0 | I180: 0 | J180: 0 | K180: 0 | L180: 0 | M180: 0 | O180: FALSE | P180: 0 | Q180: 0 | R180: 0 | S180: 0 | T180: 0 | V180: FALSE | W180: 0 | Y180: 0 | Z180: 0 | AB180: FALSE | AC180: 0 | AD180: 0 | AE180: 0 | AF180: 0 | AG180: 0 | AI180: FALSE | AJ180: 0 | AL180: 0 | AM180: 0 | AO180: FALSE | AP180: 0 | AQ180: 0 | AS180: FALSE | AT180: 0 | AV180: 0 | AW180: 0
G181: 0 | H181: 0 | I181: 0 | J181: 0 | K181: 0 | L181: 0 | M181: 0 | O181: FALSE | P181: 0 | Q181: 0 | R181: 0 | S181: 0 | T181: 0 | V181: FALSE | W181: 0 | Y181: 0 | Z181: 0 | AB181: FALSE | AC181: 0 | AD181: 0 | AE181: 0 | AF181: 0 | AG181: 0 | AI181: FALSE | AJ181: 0 | AL181: 0 | AM181: 0 | AO181: FALSE | AP181: 0 | AQ181: 0 | AS181: FALSE | AT181: 0 | AV181: 0 | AW181: 0
G182: 0 | H182: 0 | I182: 0 | J182: 0 | K182: 0 | L182: 0 | M182: 0 | O182: FALSE | P182: 0 | Q182: 0 | R182: 0 | S182: 0 | T182: 0 | V182: FALSE | W182: 0 | Y182: 0 | Z182: 0 | AB182: FALSE | AC182: 0 | AD182: 0 | AE182: 0 | AF182: 0 | AG182: 0 | AI182: FALSE | AJ182: 0 | AL182: 0 | AM182: 0 | AO182: FALSE | AP182: 0 | AQ182: 0 | AS182: FALSE | AT182: 0 | AV182: 0 | AW182: 0
G183: 0 | H183: 0 | I183: 0 | J183: 0 | K183: 0 | L183: 0 | M183: 0 | O183: FALSE | P183: 0 | Q183: 0 | R183: 0 | S183: 0 | T183: 0 | V183: FALSE | W183: 0 | Y183: 0 | Z183: 0 | AB183: FALSE | AC183: 0 | AD183: 0 | AE183: 0 | AF183: 0 | AG183: 0 | AI183: FALSE | AJ183: 0 | AL183: 0 | AM183: 0 | AO183: FALSE | AP183: 0 | AQ183: 0 | AS183: FALSE | AT183: 0 | AV183: 0 | AW183: 0
G184: 0 | H184: 0 | I184: 0 | J184: 0 | K184: 0 | L184: 0 | M184: 0 | O184: FALSE | P184: 0 | Q184: 0 | R184: 0 | S184: 0 | T184: 0 | V184: FALSE | W184: 0 | Y184: 0 | Z184: 0 | AB184: FALSE | AC184: 0 | AD184: 0 | AE184: 0 | AF184: 0 | AG184: 0 | AI184: FALSE | AJ184: 0 | AL184: 0 | AM184: 0 | AO184: FALSE | AP184: 0 | AQ184: 0 | AS184: FALSE | AT184: 0 | AV184: 0 | AW184: 0
G185: 0 | H185: 0 | I185: 0 | J185: 0 | K185: 0 | L185: 0 | M185: 0 | O185: FALSE | P185: 0 | Q185: 0 | R185: 0 | S185: 0 | T185: 0 | V185: FALSE | W185: 0 | Y185: 0 | Z185: 0 | AB185: FALSE | AC185: 0 | AD185: 0 | AE185: 0 | AF185: 0 | AG185: 0 | AI185: FALSE | AJ185: 0 | AL185: 0 | AM185: 0 | AO185: FALSE | AP185: 0 | AQ185: 0 | AS185: FALSE | AT185: 0 | AV185: 0 | AW185: 0
G186: 0 | H186: 0 | I186: 0 | J186: 0 | K186: 0 | L186: 0 | M186: 0 | O186: FALSE | P186: 0 | Q186: 0 | R186: 0 | S186: 0 | T186: 0 | V186: FALSE | W186: 0 | Y186: 0 | Z186: 0 | AB186: FALSE | AC186: 0 | AD186: 0 | AE186: 0 | AF186: 0 | AG186: 0 | AI186: FALSE | AJ186: 0 | AL186: 0 | AM186: 0 | AO186: FALSE | AP186: 0 | AQ186: 0 | AS186: FALSE | AT186: 0 | AV186: 0 | AW186: 0
G187: 0 | H187: 0 | I187: 0 | J187: 0 | K187: 0 | L187: 0 | M187: 0 | O187: FALSE | P187: 0 | Q187: 0 | R187: 0 | S187: 0 | T187: 0 | V187: FALSE | W187: 0 | Y187: 0 | Z187: 0 | AB187: FALSE | AC187: 0 | AD187: 0 | AE187: 0 | AF187: 0 | AG187: 0 | AI187: FALSE | AJ187: 0 | AL187: 0 | AM187: 0 | AO187: FALSE | AP187: 0 | AQ187: 0 | AS187: FALSE | AT187: 0 | AV187: 0 | AW187: 0
G188: 0 | H188: 0 | I188: 0 | J188: 0 | K188: 0 | L188: 0 | M188: 0 | O188: FALSE | P188: 0 | Q188: 0 | R188: 0 | S188: 0 | T188: 0 | V188: FALSE | W188: 0 | Y188: 0 | Z188: 0 | AB188: FALSE | AC188: 0 | AD188: 0 | AE188: 0 | AF188: 0 | AG188: 0 | AI188: FALSE | AJ188: 0 | AL188: 0 | AM188: 0 | AO188: FALSE | AP188: 0 | AQ188: 0 | AS188: FALSE | AT188: 0 | AV188: 0 | AW188: 0
G189: 0 | H189: 0 | I189: 0 | J189: 0 | K189: 0 | L189: 0 | M189: 0 | O189: FALSE | P189: 0 | Q189: 0 | R189: 0 | S189: 0 | T189: 0 | V189: FALSE | W189: 0 | Y189: 0 | Z189: 0 | AB189: FALSE | AC189: 0 | AD189: 0 | AE189: 0 | AF189: 0 | AG189: 0 | AI189: FALSE | AJ189: 0 | AL189: 0 | AM189: 0 | AO189: FALSE | AP189: 0 | AQ189: 0 | AS189: FALSE | AT189: 0 | AV189: 0 | AW189: 0
G190: 0 | H190: 0 | I190: 0 | J190: 0 | K190: 0 | L190: 0 | M190: 0 | O190: FALSE | P190: 0 | Q190: 0 | R190: 0 | S190: 0 | T190: 0 | V190: FALSE | W190: 0 | Y190: 0 | Z190: 0 | AB190: FALSE | AC190: 0 | AD190: 0 | AE190: 0 | AF190: 0 | AG190: 0 | AI190: FALSE | AJ190: 0 | AL190: 0 | AM190: 0 | AO190: FALSE | AP190: 0 | AQ190: 0 | AS190: FALSE | AT190: 0 | AV190: 0 | AW190: 0
G191: 0 | H191: 0 | I191: 0 | J191: 0 | K191: 0 | L191: 0 | M191: 0 | O191: FALSE | P191: 0 | Q191: 0 | R191: 0 | S191: 0 | T191: 0 | V191: FALSE | W191: 0 | Y191: 0 | Z191: 0 | AB191: FALSE | AC191: 0 | AD191: 0 | AE191: 0 | AF191: 0 | AG191: 0 | AI191: FALSE | AJ191: 0 | AL191: 0 | AM191: 0 | AO191: FALSE | AP191: 0 | AQ191: 0 | AS191: FALSE | AT191: 0 | AV191: 0 | AW191: 0
G192: 0 | H192: 0 | I192: 0 | J192: 0 | K192: 0 | L192: 0 | M192: 0 | O192: FALSE | P192: 0 | Q192: 0 | R192: 0 | S192: 0 | T192: 0 | V192: FALSE | W192: 0 | Y192: 0 | Z192: 0 | AB192: FALSE | AC192: 0 | AD192: 0 | AE192: 0 | AF192: 0 | AG192: 0 | AI192: FALSE | AJ192: 0 | AL192: 0 | AM192: 0 | AO192: FALSE | AP192: 0 | AQ192: 0 | AS192: FALSE | AT192: 0 | AV192: 0 | AW192: 0
G193: 0 | H193: 0 | I193: 0 | J193: 0 | K193: 0 | L193: 0 | M193: 0 | O193: FALSE | P193: 0 | Q193: 0 | R193: 0 | S193: 0 | T193: 0 | V193: FALSE | W193: 0 | Y193: 0 | Z193: 0 | AB193: FALSE | AC193: 0 | AD193: 0 | AE193: 0 | AF193: 0 | AG193: 0 | AI193: FALSE | AJ193: 0 | AL193: 0 | AM193: 0 | AO193: FALSE | AP193: 0 | AQ193: 0 | AS193: FALSE | AT193: 0 | AV193: 0 | AW193: 0
G194: 0 | H194: 0 | I194: 0 | J194: 0 | K194: 0 | L194: 0 | M194: 0 | O194: FALSE | P194: 0 | Q194: 0 | R194: 0 | S194: 0 | T194: 0 | V194: FALSE | W194: 0 | Y194: 0 | Z194: 0 | AB194: FALSE | AC194: 0 | AD194: 0 | AE194: 0 | AF194: 0 | AG194: 0 | AI194: FALSE | AJ194: 0 | AL194: 0 | AM194: 0 | AO194: FALSE | AP194: 0 | AQ194: 0 | AS194: FALSE | AT194: 0 | AV194: 0 | AW194: 0
G195: 0 | H195: 0 | I195: 0 | J195: 0 | K195: 0 | L195: 0 | M195: 0 | O195: FALSE | P195: 0 | Q195: 0 | R195: 0 | S195: 0 | T195: 0 | V195: FALSE | W195: 0 | Y195: 0 | Z195: 0 | AB195: FALSE | AC195: 0 | AD195: 0 | AE195: 0 | AF195: 0 | AG195: 0 | AI195: FALSE | AJ195: 0 | AL195: 0 | AM195: 0 | AO195: FALSE | AP195: 0 | AQ195: 0 | AS195: FALSE | AT195: 0 | AV195: 0 | AW195: 0
G196: 0 | H196: 0 | I196: 0 | J196: 0 | K196: 0 | L196: 0 | M196: 0 | O196: FALSE | P196: 0 | Q196: 0 | R196: 0 | S196: 0 | T196: 0 | V196: FALSE | W196: 0 | Y196: 0 | Z196: 0 | AB196: FALSE | AC196: 0 | AD196: 0 | AE196: 0 | AF196: 0 | AG196: 0 | AI196: FALSE | AJ196: 0 | AL196: 0 | AM196: 0 | AO196: FALSE | AP196: 0 | AQ196: 0 | AS196: FALSE | AT196: 0 | AV196: 0 | AW196: 0
G197: 0 | H197: 0 | I197: 0 | J197: 0 | K197: 0 | L197: 0 | M197: 0 | O197: FALSE | P197: 0 | Q197: 0 | R197: 0 | S197: 0 | T197: 0 | V197: FALSE | W197: 0 | Y197: 0 | Z197: 0 | AB197: FALSE | AC197: 0 | AD197: 0 | AE197: 0 | AF197: 0 | AG197: 0 | AI197: FALSE | AJ197: 0 | AL197: 0 | AM197: 0 | AO197: FALSE | AP197: 0 | AQ197: 0 | AS197: FALSE | AT197: 0 | AV197: 0 | AW197: 0
G198: 0 | H198: 0 | I198: 0 | J198: 0 | K198: 0 | L198: 0 | M198: 0 | O198: FALSE | P198: 0 | Q198: 0 | R198: 0 | S198: 0 | T198: 0 | V198: FALSE | W198: 0 | Y198: 0 | Z198: 0 | AB198: FALSE | AC198: 0 | AD198: 0 | AE198: 0 | AF198: 0 | AG198: 0 | AI198: FALSE | AJ198: 0 | AL198: 0 | AM198: 0 | AO198: FALSE | AP198: 0 | AQ198: 0 | AS198: FALSE | AT198: 0 | AV198: 0 | AW198: 0
G199: 0 | H199: 0 | I199: 0 | J199: 0 | K199: 0 | L199: 0 | M199: 0 | O199: FALSE | P199: 0 | Q199: 0 | R199: 0 | S199: 0 | T199: 0 | V199: FALSE | W199: 0 | Y199: 0 | Z199: 0 | AB199: FALSE | AC199: 0 | AD199: 0 | AE199: 0 | AF199: 0 | AG199: 0 | AI199: FALSE | AJ199: 0 | AL199: 0 | AM199: 0 | AO199: FALSE | AP199: 0 | AQ199: 0 | AS199: FALSE | AT199: 0 | AV199: 0 | AW199: 0
G200: 0 | H200: 0 | I200: 0 | J200: 0 | K200: 0 | L200: 0 | M200: 0 | O200: FALSE | P200: 0 | Q200: 0 | R200: 0 | S200: 0 | T200: 0 | V200: FALSE | W200: 0 | Y200: 0 | Z200: 0 | AB200: FALSE | AC200: 0 | AD200: 0 | AE200: 0 | AF200: 0 | AG200: 0 | AI200: FALSE | AJ200: 0 | AL200: 0 | AM200: 0 | AO200: FALSE | AP200: 0 | AQ200: 0 | AS200: FALSE | AT200: 0 | AV200: 0 | AW200: 0
G201: 0 | H201: 0 | I201: 0 | J201: 0 | K201: 0 | L201: 0 | M201: 0 | O201: FALSE | P201: 0 | Q201: 0 | R201: 0 | S201: 0 | T201: 0 | V201: FALSE | W201: 0 | Y201: 0 | Z201: 0 | AB201: FALSE | AC201: 0 | AD201: 0 | AE201: 0 | AF201: 0 | AG201: 0 | AI201: FALSE | AJ201: 0 | AL201: 0 | AM201: 0 | AO201: FALSE | AP201: 0 | AQ201: 0 | AS201: FALSE | AT201: 0 | AV201: 0 | AW201: 0
G202: 0 | H202: 0 | I202: 0 | J202: 0 | K202: 0 | L202: 0 | M202: 0 | O202: FALSE | P202: 0 | Q202: 0 | R202: 0 | S202: 0 | T202: 0 | V202: FALSE | W202: 0 | Y202: 0 | Z202: 0 | AB202: FALSE | AC202: 0 | AD202: 0 | AE202: 0 | AF202: 0 | AG202: 0 | AI202: FALSE | AJ202: 0 | AL202: 0 | AM202: 0 | AO202: FALSE | AP202: 0 | AQ202: 0 | AS202: FALSE | AT202: 0 | AV202: 0 | AW202: 0
G203: 0 | H203: 0 | I203: 0 | J203: 0 | K203: 0 | L203: 0 | M203: 0 | O203: FALSE | P203: 0 | Q203: 0 | R203: 0 | S203: 0 | T203: 0 | V203: FALSE | W203: 0 | Y203: 0 | Z203: 0 | AB203: FALSE | AC203: 0 | AD203: 0 | AE203: 0 | AF203: 0 | AG203: 0 | AI203: FALSE | AJ203: 0 | AL203: 0 | AM203: 0 | AO203: FALSE | AP203: 0 | AQ203: 0 | AS203: FALSE | AT203: 0 | AV203: 0 | AW203: 0
G204: 0 | H204: 0 | I204: 0 | J204: 0 | K204: 0 | L204: 0 | M204: 0 | O204: FALSE | P204: 0 | Q204: 0 | R204: 0 | S204: 0 | T204: 0 | V204: FALSE | W204: 0 | Y204: 0 | Z204: 0 | AB204: FALSE | AC204: 0 | AD204: 0 | AE204: 0 | AF204: 0 | AG204: 0 | AI204: FALSE | AJ204: 0 | AL204: 0 | AM204: 0 | AO204: FALSE | AP204: 0 | AQ204: 0 | AS204: FALSE | AT204: 0 | AV204: 0 | AW204: 0
G205: 0 | H205: 0 | I205: 0 | J205: 0 | K205: 0 | L205: 0 | M205: 0 | O205: FALSE | P205: 0 | Q205: 0 | R205: 0 | S205: 0 | T205: 0 | V205: FALSE | W205: 0 | Y205: 0 | Z205: 0 | AB205: FALSE | AC205: 0 | AD205: 0 | AE205: 0 | AF205: 0 | AG205: 0 | AI205: FALSE | AJ205: 0 | AL205: 0 | AM205: 0 | AO205: FALSE | AP205: 0 | AQ205: 0 | AS205: FALSE | AT205: 0 | AV205: 0 | AW205: 0
G206: 0 | H206: 0 | I206: 0 | J206: 0 | K206: 0 | L206: 0 | M206: 0 | O206: FALSE | P206: 0 | Q206: 0 | R206: 0 | S206: 0 | T206: 0 | V206: FALSE | W206: 0 | Y206: 0 | Z206: 0 | AB206: FALSE | AC206: 0 | AD206: 0 | AE206: 0 | AF206: 0 | AG206: 0 | AI206: FALSE | AJ206: 0 | AL206: 0 | AM206: 0 | AO206: FALSE | AP206: 0 | AQ206: 0 | AS206: FALSE | AT206: 0 | AV206: 0 | AW206: 0
G207: 0 | H207: 0 | I207: 0 | J207: 0 | K207: 0 | L207: 0 | M207: 0 | O207: FALSE | P207: 0 | Q207: 0 | R207: 0 | S207: 0 | T207: 0 | V207: FALSE | W207: 0 | Y207: 0 | Z207: 0 | AB207: FALSE | AC207: 0 | AD207: 0 | AE207: 0 | AF207: 0 | AG207: 0 | AI207: FALSE | AJ207: 0 | AL207: 0 | AM207: 0 | AO207: FALSE | AP207: 0 | AQ207: 0 | AS207: FALSE | AT207: 0 | AV207: 0 | AW207: 0
G208: 0 | H208: 0 | I208: 0 | J208: 0 | K208: 0 | L208: 0 | M208: 0 | O208: FALSE | P208: 0 | Q208: 0 | R208: 0 | S208: 0 | T208: 0 | V208: FALSE | W208: 0 | Y208: 0 | Z208: 0 | AB208: FALSE | AC208: 0 | AD208: 0 | AE208: 0 | AF208: 0 | AG208: 0 | AI208: FALSE | AJ208: 0 | AL208: 0 | AM208: 0 | AO208: FALSE | AP208: 0 | AQ208: 0 | AS208: FALSE | AT208: 0 | AV208: 0 | AW208: 0
... 793 more rows
